{"text_format":"1","workbook":"xlsx","n_sheets":9,"sheets":["Presentación","Diagnóstico","Priorización","Resumen","Plan","DB act","Información","Seguimiento","Pivots"],"not_rendered":{"charts":2,"images":1,"macros":1,"external_links":1,"defined_names":26,"comments":0,"pivot_tables":8},"unopened":[],"bounds":{"document_bytes":16777216,"sheet_cells":100000,"rows_first":2000,"rows_last":500,"rows_between":2000,"halvings":0,"cell_chars":16384,"cell_head_chars":4096},"cells_cut":0,"cells_raw":0,"read":"whole","date_system":"1900"}

{"sheet":"Presentación","index":0,"n_rows":14,"n_cols":6,"rows_kept":14,"cut":false,"hidden":false,"merged":[[24,1,24,3],[25,1,25,3],[3,5,25,10],[20,1,20,3],[21,1,21,3],[22,1,22,3],[23,1,23,3],[15,1,15,3],[16,1,16,3],[17,1,17,3],[18,1,18,3],[19,1,19,3],[1,0,1,4],[4,1,4,3],[13,1,13,3],[14,1,14,3],[3,1,3,3],[9,0,9,1],[10,0,10,1],[9,2,9,3],[10,2,10,3]]}
[]
["1. Información General"]
[]
["Fecha:",null,null,null,null,"La herramienta Plan de Mejora y Eficiencia (PME) está basada en la filosofía de mejora continua:\n1. Primero se identificaron 46 variables dentro de 5 ejes temáticos integrales, las cuales se evalúan en un cuestionario de autoevaluación (diagnóstico) para obtener una caracterización de la ASADA.\n2. De las variables identificadas por mejorar, se priorizan y eligen las que formarán parte del Plan.\n3. El PME se realiza dentro de un compromiso de fechas y responsables, al cual se le dará el seguimiento hasta obtener la mejora esperada.\n4. Concluído el ciclo se reinicia para proceder a mejorar aquellas variables que aún estén pendientes, de manera que se busque la excelencia de la prestación del servicio de agua."]
["Nombre de la ASADA:"]
[]
["Información de la ASADA"]
["Región",null,"Distrito"]
["Cantón",null,"Teléfono"]
["Número de conexiones o servicios"]
["Número de comunidades "]
[]
["Comité de evaluación y planificación"]
["Puesto","Nombre"]

{"sheet":"Diagnóstico","index":1,"n_rows":87,"n_cols":20,"rows_kept":87,"cut":false,"hidden":false,"merged":[[76,0,76,5],[74,2,74,3],[1,0,1,5],[49,1,49,5],[50,1,50,5],[51,1,51,5],[42,0,54,0],[30,0,39,0],[30,1,30,5],[31,1,31,5],[32,1,32,5],[33,1,33,5],[34,1,34,5],[35,1,35,5],[36,1,36,5],[37,1,37,5],[38,1,38,5],[40,1,40,5],[58,1,58,5],[59,1,59,5],[60,1,60,5],[42,1,42,5],[43,1,43,5],[44,1,44,5],[45,1,45,5],[57,1,57,5],[23,0,27,0],[23,1,23,5],[24,1,24,5],[25,1,25,5],[26,1,26,5],[27,1,27,5],[16,0,20,0],[21,1,21,5],[14,1,14,5],[16,1,16,5],[17,1,17,5],[18,1,18,5],[19,1,19,5],[20,1,20,5],[2,14,2,15],[12,1,12,5],[13,1,13,5],[4,1,4,5],[5,1,5,5],[6,1,6,5],[7,1,7,5],[8,1,8,5],[9,1,9,5],[3,8,3,11],[3,1,3,5],[10,1,10,5],[11,1,11,5],[72,2,72,3],[73,2,73,3],[64,0,64,5],[67,2,68,2],[67,3,68,3],[57,0,60,0],[4,0,13,0],[64,8,64,12],[70,2,70,3],[71,2,71,3],[62,1,62,5],[54,1,54,5],[55,1,55,5],[28,1,28,5],[46,1,46,5],[47,1,47,5],[48,1,48,5],[52,1,52,5],[53,1,53,5],[39,1,39,5],[61,1,61,5]]}
[]
["2. Cuestionario de Autoevaluación"]
[null,null,null,null,null,null,null,null,null,null,null,null,null,null,"CALIFICACIÓN"]
[null,"Preguntas",null,null,null,null,"Pts totales","%  ","Seleccione la respuesta a cada pregunta",null,null,null,"Resultado","Respuesta","Pts acumulados","%","Nombre variable","Diferencia pts","Diferencia %","Eje temático"]
["Gestión Comercial","1. ¿Qué tipo de sistema de facturación se utiliza para los usuarios?",null,null,null,null,2,0.01,"No hay","Manual","Sistema Electrónico",null,1,{"$f":"+IF(M5=1,I5,IF(M5=2,J5,IF(M5=3,K5,\"\")))","v":"No hay"},{"$f":"+IF(M5=1,0,IF(M5=2,1,IF(M5=3,2,0)))","v":0},{"$f":"+IF(M5=1,0,IF(M5=2,0.005,IF(M5=3,0.01,0)))","v":0},"Sistema de Facturación",{"$f":"IF(N5=\"Sin respuesta\",0,G5-O5)","v":2},{"$f":"IF(N5=\"Sin respuesta\",0,H5-P5)","v":0.01},"G. Comercial"]
[null,"2. ¿Cada cuánto se hace la lectura de los hidrómetros a los usuarios?",null,null,null,null,2,0.01,"No hay"," Bimensual","Mensual",null,2,{"$f":"+IF(M6=1,I6,IF(M6=2,J6,IF(M6=3,K6,\"\")))","v":" Bimensual"},{"$f":"+IF(M6=1,0,IF(M6=2,1,IF(M6=3,2,0)))","v":1},{"$f":"+IF(M6=1,0,IF(M6=2,0.005,IF(M6=3,0.01,0)))","v":5.0000000000000001E-3},"Frecuencia de la lectura de hidrómetros",1,5.0000000000000001E-3,"G. Comercial"]
[null,"3. ¿Cuál es el porcentaje de cobertura de hidrómetros instalados? ",null,null,null,null,3,0.01,"No hay","Menor o \nigual a 50%","Entre 50%\n y 75%","Mayor \na 75%",2,{"$f":"+IF(M7=1,I7,IF(M7=2,J7,IF(M7=3,K7,IF(M7=4,L7,\"\"))))","v":"Menor o \nigual a 50%"},{"$f":"+IF(M7=1,0,IF(M7=2,1,IF(M7=3,2,IF(M7=4,3,0))))","v":1},{"$f":"+IF(M7=1,0,IF(M7=2,0.0033,IF(M7=3,0.0066,IF(M7=4,0.01,0))))","v":3.3E-3},"Micromedición instalada",2,6.7000000000000002E-3,"G. Comercial"]
[null,"4. ¿Tienen disponibilidad de agua para la expansion de los servicios?",null,null,null,null,1,0.01,"No","Sí",null,null,2,{"$f":"+IF(M8=1,I8,IF(M8=2,J8,\"\"))","v":"Sí"},{"$f":"+IF(M8=1,0,IF(M8=2,1,0))","v":1},{"$f":"+IF(M8=1,0,IF(M8=2,0.01,0))","v":0.01},"Disponibilidad de agua para nuevos servicios",0,0,"G. Comercial"]
[null,"5. ¿Cuentan con un sistema de macromedición? ",null,null,null,null,1,0.01,"No","Sí",null,null,1,{"$f":"+IF(M9=1,I9,IF(M9=2,J9,\"\"))","v":"No"},{"$f":"+IF(M9=1,0,IF(M9=2,1,0))","v":0},{"$f":"+IF(M9=1,0,IF(M9=2,0.01,0))","v":0},"Macromedición existente",1,0.01,"G. Comercial"]
[null,"6. ¿Se ofrece un sistema de recaudación externa?",null,null,null,null,1,0.01,"No","Sí",null,null,0,{"$f":"+IF(M10=1,I10,IF(M10=2,J10,\"\"))","v":""},{"$f":"+IF(M10=1,0,IF(M10=2,1,0))","v":0},{"$f":"+IF(M10=1,0,IF(M10=2,0.01,0))","v":0},"Sistema de Recaudación",1,0.01,"G. Comercial"]
[null,"7.  ¿Cuál es porcentaje de morosidad mensual?",null,null,null,null,2,0.01,"Más de \n10%","Menos de \n10%",0,null,0,{"$f":"+IF(M11=1,I11,IF(M11=2,J11,IF(M11=3,K11,\"\")))","v":""},{"$f":"+IF(M11=1,0,IF(M11=2,1.5,IF(M11=3,2,0)))","v":0},{"$f":"+IF(M11=1,0,IF(M11=2,0.005,IF(M11=3,0.01,0)))","v":0},"Morosidad mensual",2,0.01,"G. Comercial"]
[null,"8. ¿Aplica la tarifa vigente regulada por ARESEP? ",null,null,null,null,1,0.05,"No","Sí",null,null,0,{"$f":"+IF(M12=1,I12,IF(M12=2,J12,\"\"))","v":""},{"$f":"+IF(M12=1,0,IF(M12=2,1,0))","v":0},{"$f":"+IF(M12=1,0,IF(M12=2,0.05,0))","v":0},"Aplicación de tarifa vigente de ARESEP",1,0.05,"G. Comercial"]
[null,"9. ¿Qué tipo de local se utiliza para la atención de los usuarios? ",null,null,null,null,3,0.02,"No se cuenta \ncon un lugar","Vivienda Particular","Instalación Comunal","Oficina",0,{"$f":"+IF(M13=1,I13,IF(M13=2,J13,IF(M13=3,K13,IF(M13=4,L13,\"\"))))","v":""},{"$f":"+IF(M13=1,0,IF(M13=2,1,IF(M13=3,2,IF(M13=4,3,0))))","v":0},{"$f":"+IF(M13=1,0,IF(M13=2,0.01,IF(M13=3,0.015,IF(M13=4,0.02,0))))","v":0},"Local para atención de Usuarios",3,0.02,"G. Comercial"]
[null,"10. ¿Cuenta con un sistema de seguimiento de quejas?",null,null,null,null,1,0.01,"No","Sí",null,null,0,{"$f":"+IF(M14=1,I14,IF(M14=2,J14,\"\"))","v":""},{"$f":"+IF(M14=1,0,IF(M14=2,1,0))","v":0},{"$f":"+IF(M14=1,0,IF(M14=2,0.01,0))","v":0},"Seguimiento de quejas",1,0.01,"G. Comercial"]
[null,null,null,null,null,null,{"$f":"+SUM(G5:G14)","v":17},{"$f":"+SUM(H5:H14)","v":0.15000000000000002},null,null,null,null,null,"Subtotal",{"$f":"+SUM(O5:O14)","v":3},{"$f":"+SUM(P5:P14)","v":1.83E-2},null,{"$f":"+SUM(R5:R14)","v":14},{"$f":"+SUM(S5:S14)","v":0.13170000000000001}]
[null,null,null,null,null,null,null,null,null,null,null,null,null,"x",null,null,"Variable","Puntos","%"]
["Gestión Comunal","11. ¿Se organizan campañas para involucrar a las escuelas/colegios que busquen crear conciencia del uso adecuado del agua?",null,null,null,null,1,0.03,"No","Sí",null,null,0,{"$f":"+IF(M17=1,I17,IF(M17=2,J17,\"\"))","v":""},{"$f":"+IF(M17=1,0,IF(M17=2,1,0))","v":0},{"$f":"+IF(M17=1,0,IF(M17=2,0.03,0))","v":0},"Campañas con escuelas/colegios",{"$f":"IF(N17=\"Sin respuesta\",0,G17-O17)","v":1},{"$f":"IF(N17=\"Sin respuesta\",0,H17-P17)","v":0.03},"G. Comunal"]
[null,"12. ¿Se realiza rendición de cuentas y transparencia de la gestión de la ASADA hacia la comunidad?",null,null,null,null,2,0.03,"No","Poco","   Sí, regularmente",null,0,{"$f":"+IF(M18=1,I18,IF(M18=2,J18,IF(M18=3,K18,\"\")))","v":""},{"$f":"+IF(M18=1,0,IF(M18=2,1,IF(M18=3,2,0)))","v":0},{"$f":"+IF(M18=1,0,IF(M18=2,0.015,IF(M18=3,0.03,0)))","v":0},"Plan de Transparencia y Rendición de cuentas ",{"$f":"IF(N18=\"Sin respuesta\",0,G18-O18)","v":2},{"$f":"IF(N18=\"Sin respuesta\",0,H18-P18)","v":0.03},"G. Comunal"]
[null,"13.¿Posee con una estrategia de afiliación de usuarios al servicio?",null,null,null,null,1,0.03,"No","Sí",null,null,0,{"$f":"+IF(M19=1,I19,IF(M19=2,J19,\"\"))","v":""},{"$f":"+IF(M19=1,0,IF(M19=2,1,0))","v":0},{"$f":"+IF(M19=1,0,IF(M19=2,0.03,0))","v":0},"Plan de Afiliación ",{"$f":"IF(N19=\"Sin respuesta\",0,G19-O19)","v":1},{"$f":"IF(N19=\"Sin respuesta\",0,H19-P19)","v":0.03},"G. Comunal"]
[null,"14. ¿Cuál es el porcentaje de participación de socios en las Asambleas?",null,null,null,null,3,0.03,"No hay","Menor a\n 50%","Entre 50%\n y 75%","Más de\n 75%",0,{"$f":"+IF(M20=1,I20,IF(M20=2,J20,IF(M20=3,K20,IF(M20=4,L20,\"\"))))","v":""},{"$f":"+IF(M20=1,0,IF(M20=2,1,IF(M20=3,2,IF(M20=4,3,0))))","v":0},{"$f":"+IF(M20=1,0,IF(M20=2,0.01,IF(M20=3,0.02,IF(M20=4,0.03,0))))","v":0},"Socios en las Asambleas ",{"$f":"IF(N20=\"Sin respuesta\",0,G20-O20)","v":3},{"$f":"IF(N20=\"Sin respuesta\",0,H20-P20)","v":0.03},"G. Comunal"]
[null,"15. ¿Qué porcentaje de usuarios son socios? ",null,null,null,null,3,0.03,"No hay","Menor a\n50%","Entre 50%\n y 75%","Más de\n 75%",0,{"$f":"+IF(M21=1,I21,IF(M21=2,J21,IF(M21=3,K21,IF(M21=4,L21,\"\"))))","v":""},{"$f":"+IF(M21=1,0,IF(M21=2,1,IF(M21=3,2,IF(M21=4,3,0))))","v":0},{"$f":"+IF(M21=1,0,IF(M21=2,0.01,IF(M21=3,0.02,IF(M21=4,0.03,0))))","v":0},"Porcentaje de usuarios que son socios",{"$f":"IF(N21=\"Sin respuesta\",0,G21-O21)","v":3},{"$f":"IF(N21=\"Sin respuesta\",0,H21-P21)","v":0.03},"G. Comunal"]
[null,null,null,null,null,null,{"$f":"+SUM(G17:G21)","v":10},{"$f":"+SUM(H17:H21)","v":0.15},null,null,null,null,null,"Subtotal",{"$f":"+SUM(O17:O21)","v":0},{"$f":"+SUM(P17:P21)","v":0},null,{"$f":"+SUM(R17:R21)","v":10},{"$f":"+SUM(S17:S21)","v":0.15}]
[null,null,null,null,null,null,null,null,null,null,null,null,null,"x",null,null,"Variable","Puntos","%"]
["Gestión Ambiental y de Recurso Hídrico","16. ¿Se cuenta con estudios técnicos para definir el balance hídrico?",null,null,null,null,1,0.04,"No","Sí",null,null,0,{"$f":"+IF(M24=1,I24,IF(M24=2,J24,\"\"))","v":""},{"$f":"+IF(M24=1,0,IF(M24=2,1,0))","v":0},{"$f":"+IF(M24=1,0,IF(M24=2,0.04,0))","v":0},"Balance Hídrico",{"$f":"IF(N24=\"Sin respuesta\",0,G24-O24)","v":1},{"$f":"IF(N24=\"Sin respuesta\",0,H24-P24)","v":0.04},"G. Ambiental y de Recurso Hídrico"]
[null,"17. ¿Se cuenta con programas de adaptación al cambio climático?",null,null,null,null,1,0.02,"No","Sí",null,null,0,{"$f":"+IF(M25=1,I25,IF(M25=2,J25,\"\"))","v":""},{"$f":"+IF(M25=1,0,IF(M25=2,1,0))","v":0},{"$f":"+IF(M25=1,0,IF(M25=2,0.02,0))","v":0},"Programas de Adaptación Cambio Climático",{"$f":"IF(N25=\"Sin respuesta\",0,G25-O25)","v":1},{"$f":"IF(N25=\"Sin respuesta\",0,H25-P25)","v":0.02},"G. Ambiental y de Recurso Hídrico"]
[null,"18. ¿Se cuenta con estudio técnico que define las áreas de protección?",null,null,null,null,1,0.04,"No","Sí",null,null,0,{"$f":"+IF(M26=1,I26,IF(M26=2,J26,\"\"))","v":""},{"$f":"+IF(M26=1,0,IF(M26=2,1,0))","v":0},{"$f":"+IF(M26=1,0,IF(M26=2,0.04,0))","v":0},"Áreas de protección definidas",{"$f":"IF(N26=\"Sin respuesta\",0,G26-O26)","v":1},{"$f":"IF(N26=\"Sin respuesta\",0,H26-P26)","v":0.04},"G. Ambiental y de Recurso Hídrico"]
[null,"19. ¿Se están desarrollando programas de educación ambiental en la comunidad?",null,null,null,null,1,0.02,"No","Sí",null,null,0,{"$f":"+IF(M27=1,I27,IF(M27=2,J27,\"\"))","v":""},{"$f":"+IF(M27=1,0,IF(M27=2,1,0))","v":0},{"$f":"+IF(M27=1,0,IF(M27=2,0.02,0))","v":0},"Programas de educación ambiental en la comunidad",{"$f":"IF(N27=\"Sin respuesta\",0,G27-O27)","v":1},{"$f":"IF(N27=\"Sin respuesta\",0,H27-P27)","v":0.02},"G. Ambiental y de Recurso Hídrico"]
[null,"20.¿Las fuentes están inscritas como caudales ante el MINAE?",null,null,null,null,1,0.03,"No","Sí",null,null,0,{"$f":"+IF(M28=1,I28,IF(M28=2,J28,\"\"))","v":""},{"$f":"+IF(M28=1,0,IF(M28=2,1,0))","v":0},{"$f":"+IF(M28=1,0,IF(M28=2,0.03,0))","v":0},"Inscripción de caudal en MINAE",{"$f":"IF(N28=\"Sin respuesta\",0,G28-O28)","v":1},{"$f":"IF(N28=\"Sin respuesta\",0,H28-P28)","v":0.03},"G. Ambiental y de Recurso Hídrico"]
[null,null,null,null,null,null,{"$f":"+SUM(G24:G28)","v":5},{"$f":"+SUM(H24:H28)","v":0.15000000000000002},null,null,null,null,null,"Subtotal",{"$f":"+SUM(O24:O28)","v":0},{"$f":"+SUM(P24:P28)","v":0},null,{"$f":"+SUM(R24:R28)","v":5},{"$f":"+SUM(S24:S28)","v":0.15000000000000002}]
[null,null,null,null,null,null,null,null,null,null,null,null,null,"x",null,null,"Variable","Puntos","%"]
["Gestión de Sistemas de Agua","21.¿Se hacen las mediciones de presión periódicas al sistema de abastecimiento?",null,null,null,null,1,0.02,"No","Sí",null,null,0,{"$f":"+IF(M31=1,I31,IF(M31=2,J31,\"\"))","v":""},{"$f":"+IF(M31=1,0,IF(M31=2,1,IF(M31=3,,0)))","v":0},{"$f":"+IF(M31=1,0,IF(M31=2,0.02,0))","v":0},"Mediciones de presión ",{"$f":"IF(N31=\"Sin respuesta\",0,G31-O31)","v":1},{"$f":"IF(N31=\"Sin respuesta\",0,H31-P31)","v":0.02},"G. Sistemas de Agua"]
[null,"22. ¿Cuentan con un plan de instalación de hidrantes avalado por el Cuerpo de Bomberos?",null,null,null,null,1,0.01,"No","Sí",null,null,0,{"$f":"+IF(M32=1,I32,IF(M32=2,J32,\"\"))","v":""},{"$f":"+IF(M32=1,0,IF(M32=2,1,0))","v":0},{"$f":"+IF(M32=1,0,IF(M32=2,0.01,0))","v":0},"Plan de instalación de hidrantes",1,0.01,"G. Sistemas de Agua"]
[null,"23. ¿Los hidrantes poseen una contabilidad separada a los servicios de agua?",null,null,null,null,1,0.01,"No hay","Sí",null,null,0,{"$f":"+IF(M33=1,I33,IF(M33=2,J33,\"\"))","v":""},{"$f":"+IF(M33=1,0,IF(M33=2,1,0))","v":0},{"$f":"+IF(M33=1,0,IF(M33=2,0.01,0))","v":0},"Contabilidad para hidrantes separada",1,0.01,"G. Sistemas de Agua"]
[null,"24. ¿Cuenta con Sistema de Desinfección?",null,null,null,null,2,0.03,"No","Sí","Sí, funcionando adecuadamente",null,0,{"$f":"+IF(M34=1,I34,IF(M34=2,J34,IF(M34=3,K34,\"\")))","v":""},{"$f":"+IF(M34=1,0,IF(M34=2,1,IF(M34=3,2,0)))","v":0},{"$f":"+IF(M34=1,0,IF(M34=2,0.015,IF(M34=3,0.03,0)))","v":0},"Calidad del agua – Sistema de Desinfección",2,0.03,"G. Sistemas de Agua"]
[null,"25. ¿Se tiene un plan de Gestión del Riesgo (Vulnerabilidades y amenazas)?",null,null,null,null,1,0.02,"No","Sí",null,null,0,{"$f":"+IF(M35=1,I35,IF(M35=2,J35,\"\"))","v":""},{"$f":"+IF(M35=1,0,IF(M35=2,1,IF(M35=3,,0)))","v":0},{"$f":"+IF(M35=1,0,IF(M35=2,0.02,0))","v":0},"Plan de Gestión de Riesgos",1,0.02,"G. Sistemas de Agua"]
[null,"26. ¿Cada cuánto realiza los análisis de calidad de agua?",null,null,null,null,3,0.03,"No hay","Anual","Semestral","Trimestral",0,{"$f":"+IF(M36=1,I36,IF(M36=2,J36,IF(M36=3,K36,IF(M36=4,L36,\"\"))))","v":""},{"$f":"+IF(M36=1,0,IF(M36=2,1,IF(M36=3,3,IF(M36=4,3,0))))","v":0},{"$f":"+IF(M36=1,0,IF(M36=2,0.01,IF(M36=3,0.03,IF(M36=4,0.03,0))))","v":0},"Calidad del agua – Periodicidad de los muestreos",3,0.03,"G. Sistemas de Agua"]
[null,"27. ¿El resultado del análisis cumple con el Reglamento de Agua Potable?",null,null,null,null,1,0.12,"No","Sí",null,null,0,{"$f":"+IF(M37=1,I37,IF(M37=2,J37,\"\"))","v":""},{"$f":"+IF(M37=1,0,IF(M37=2,1,0))","v":0},{"$f":"+IF(M37=1,0,IF(M37=2,0.12,0))","v":0},"Calidad del agua – Cumplimiento del RCA",1,0.12,"G. Sistemas de Agua"]
[null,"28. ¿Se realizan las medidas correctivas con base en los análisis reportados por el laboratorio asignado?",null,null,null,null,1,0.02,"No","Sí",null,null,0,{"$f":"+IF(M38=1,I38,IF(M38=2,J38,\"\"))","v":""},{"$f":"+IF(M38=1,0,IF(M38=2,1,IF(M38=3,,0)))","v":0},{"$f":"+IF(M38=1,0,IF(M38=2,0.02,0))","v":0},"Calidad del agua – implementación de medidas correctivas",1,0.02,"G. Sistemas de Agua"]
[null,"29. ¿Con que frecuencia se presentan interrupciones (mayor a 6hrs) por roturas, fugas o desacoples en la tubería de distribución para el último año?",null,null,null,null,3,0.02,"Mensual","3 veces/\nAño","2 veces/\nAño","Ninguna\n100% continuo",0,{"$f":"+IF(M39=1,I39,IF(M39=2,J39,IF(M39=3,K39,IF(M39=4,L39,\"\"))))","v":""},{"$f":"+IF(M39=1,0,IF(M39=2,1,IF(M39=3,3,IF(M39=4,3,0))))","v":0},{"$f":"+IF(M39=1,0,IF(M39=2,0.0066,IF(M39=3,0.02,IF(M39=4,0.02,0))))","v":0},"Frecuencia de  interrupciones del servicio",3,0.02,"G. Sistemas de Agua"]
[null,"30. ¿Tiene manual de mantenimiento y operación del sistema de abastecimiento de agua?",null,null,null,null,1,0.02,"No","Sí",null,null,0,{"$f":"+IF(M40=1,I40,IF(M40=2,J40,\"\"))","v":""},{"$f":"+IF(M40=1,0,IF(M40=2,1,0))","v":0},{"$f":"+IF(M40=1,0,IF(M40=2,0.02,0))","v":0},"Manual de mantenimiento y operación del sistema",1,0.02,"G. Sistemas de Agua"]
[null,null,null,null,null,null,{"$f":"+SUM(G31:G40)","v":15},{"$f":"+SUM(H31:H40)","v":0.30000000000000004},null,null,null,null,null,"Subtotal",{"$f":"+SUM(O31:O40)","v":0},{"$f":"+SUM(P31:P40)","v":0},null,{"$f":"+SUM(R31:R40)","v":15},{"$f":"+SUM(S31:S40)","v":0.30000000000000004}]
[null,null,null,null,null,null,null,null,null,null,null,null,null,"x",null,null,"Variable","Puntos","%"]
["Gestión Administrativa y Financiera","31. ¿Dónde se custodian los ingresos?",null,null,null,null,2,0.01,"Custodia Física en ASADA","Cuenta Bancaria particular","Cuenta Bancaria ASADA",null,0,{"$f":"+IF(M43=1,I43,IF(M43=2,J43,IF(M43=3,K43,\"\")))","v":""},{"$f":"+IF(M43=1,0,IF(M43=2,1,IF(M43=3,2,0)))","v":0},{"$f":"+IF(M43=1,0,IF(M43=2,0.005,IF(M43=3,0.01,0)))","v":0},"Custodia de ingresos",{"$f":"IF(N43=\"Sin respuesta\",0,G43-O43)","v":2},{"$f":"IF(N43=\"Sin respuesta\",0,H43-P43)","v":0.01},"G. Administrativa y Financiera"]
[null,"32. ¿Existe un plan de trabajo anual que sirva como guía al trabajo a realizar durante el año? ",null,null,null,null,2,0.02,"No\n tienen","Sin \nactualizar","Al día",null,0,{"$f":"+IF(M44=1,I44,IF(M44=2,J44,IF(M44=3,K44,\"\")))","v":""},{"$f":"+IF(M44=1,0,IF(M44=2,1,IF(M44=3,2,0)))","v":0},{"$f":"+IF(M44=1,0,IF(M44=2,0.01,IF(M44=3,0.02,0)))","v":0},"Plan de Trabajo Anual",2,0.02,"G. Administrativa y Financiera"]
[null,"33. ¿Cuentan con un libro de socios?",null,null,null,null,2,0.01,"No \ncuentan","Sin\n actualizar","Al día",null,0,{"$f":"+IF(M45=1,I45,IF(M45=2,J45,IF(M45=3,K45,\"\")))","v":""},{"$f":"+IF(M45=1,0,IF(M45=2,1,IF(M45=3,2,0)))","v":0},{"$f":"+IF(M45=1,0,IF(M45=2,0.005,IF(M45=3,0.01,0)))","v":0},"Libro de Socios",2,0.01,"G. Administrativa y Financiera"]
[null,"34. ¿Cuentan con un libro de actas de Asambleas?",null,null,null,null,2,0.01,"No\n tienen","Sin \nactualizar","Al día",null,0,{"$f":"+IF(M46=1,I46,IF(M46=2,J46,IF(M46=3,K46,\"\")))","v":""},{"$f":"+IF(M46=1,0,IF(M46=2,1,IF(M46=3,2,0)))","v":0},{"$f":"+IF(M46=1,0,IF(M46=2,0.005,IF(M46=3,0.01,0)))","v":0},"Libro de Actas Asamblea",2,0.01,"G. Administrativa y Financiera"]
[null,"35. ¿Cuentan con libro de actas de la Junta Directiva?",null,null,null,null,2,0.01,"No \ntienen","Sin \nactualizar","Al día",null,0,{"$f":"+IF(M47=1,I47,IF(M47=2,J47,IF(M47=3,K47,\"\")))","v":""},{"$f":"+IF(M47=1,0,IF(M47=2,1,IF(M47=3,2,0)))","v":0},{"$f":"+IF(M47=1,0,IF(M47=2,0.005,IF(M47=3,0.01,0)))","v":0},"Libro de Actas Junta Directiva",2,0.01,"G. Administrativa y Financiera"]
[null,"36. ¿Cuenta con el convenio de delegación?",null,null,null,null,1,0.1,"No","Sí",null,null,0,{"$f":"+IF(M48=1,I48,IF(M48=2,J48,\"\"))","v":""},{"$f":"+IF(M48=1,0,IF(M48=2,1,0))","v":0},{"$f":"+IF(M48=1,0,IF(M48=2,0.1,0))","v":0},"Convenio de Delegación",1,0.1,"G. Administrativa y Financiera"]
[null,"37. ¿Se tiene un fontanero contratado por la ASADA?",null,null,null,null,1,0.03,"No","Sí",null,null,0,{"$f":"+IF(M49=1,I49,IF(M49=2,J49,\"\"))","v":""},{"$f":"+IF(M49=1,0,IF(M49=2,1,0))","v":0},{"$f":"+IF(M49=1,0,IF(M49=2,0.03,0))","v":0},"Fontanero",1,0.03,"G. Administrativa y Financiera"]
[null,"38. ¿Cuenta con servicios de contabilidad para llevar los libros contables al día?",null,null,null,null,1,0.01,"No","Sí",null,null,0,{"$f":"+IF(M50=1,I50,IF(M50=2,J50,\"\"))","v":""},{"$f":"+IF(M50=1,0,IF(M50=2,1,0))","v":0},{"$f":"+IF(M50=1,0,IF(M50=2,0.01,0))","v":0},"Servicios de Contabilidad",1,0.01,"G. Administrativa y Financiera"]
[null,"39. ¿Cuentan con Estados financieros actualizados al último trimestre?",null,null,null,null,2,0.01,"No tienen","Desactualizado","Actualizado",null,0,{"$f":"+IF(M51=1,I51,IF(M51=2,J51,IF(M51=3,K51,\"\")))","v":""},{"$f":"+IF(M51=1,0,IF(M51=2,1,IF(M51=3,2,0)))","v":0},{"$f":"+IF(M51=1,0,IF(M51=2,0.005,IF(M51=3,0.01,0)))","v":0},"Estados financieros al último trimestre",2,0.01,"G. Administrativa y Financiera"]
[null,"40. En qué medios se respalda la información Financiera?",null,null,null,null,2,0.01,"No hay","Medios\n físicos","Medios electrónicos",null,0,{"$f":"+IF(M52=1,I52,IF(M52=2,J52,IF(M52=3,K52,\"\")))","v":""},{"$f":"+IF(M52=1,0,IF(M52=2,1,IF(M52=3,2,0)))","v":0},{"$f":"+IF(M52=1,0,IF(M52=2,0.005,IF(M52=3,0.01,0)))","v":0},"Respaldos de información Financiera",2,0.01,"G. Administrativa y Financiera"]
[null,"41. Los Estados Financieros son enviados al AyA anualmente",null,null,null,null,1,0.01,"No","Sí",null,null,0,{"$f":"+IF(M53=1,I53,IF(M53=2,J53,\"\"))","v":""},{"$f":"+IF(M53=1,0,IF(M53=2,1,IF(M53=3,,0)))","v":0},{"$f":"+IF(M53=1,0,IF(M53=2,0.01,0))","v":0},"Estados Financieros enviados a AyA",1,0.01,"G. Administrativa y Financiera"]
[null,"42. ¿Se cuenta con un lugar que funcione como bodega de materiales para la operación y mantenimiento?",null,null,null,null,3,0.01,"No hay","Vivienda \nParticular","Instalación Comunal","Bodega",0,{"$f":"+IF(M54=1,I54,IF(M54=2,J54,IF(M54=3,K54,IF(M54=4,L54,\"\"))))","v":""},{"$f":"+IF(M54=1,0,IF(M54=2,1,IF(M54=3,2,IF(M54=4,3,0))))","v":0},{"$f":"+IF(M54=1,0,IF(M54=2,0.0033,IF(M54=3,0.0066,IF(M54=4,0.01,0))))","v":0},"Bodega de materiales para operación y mantenimiento",3,0.01,"G. Administrativa y Financiera"]
[null,"43. ¿Cuentan con sistemas para gestión de ASADAS? ",null,null,null,null,3,0.01,"No","Herramientas Físicas","Herramientas Digitales","Software",0,{"$f":"+IF(M55=1,I55,IF(M55=2,J55,IF(M55=3,K55,IF(M55=4,L55,\"\"))))","v":""},{"$f":"+IF(M55=1,0,IF(M55=2,1,IF(M55=3,2,IF(M55=4,3,0))))","v":0},{"$f":"+IF(M55=1,0,IF(M55=2,0.0033,IF(M55=3,0.0066,IF(M55=4,0.01,0))))","v":0},"Sistemas de gestión para la ASADAS",3,0.01,"G. Administrativa y Financiera"]
[null,null,null,null,null,null,{"$f":"+SUM(G43:G55)","v":24},{"$f":"+SUM(H43:H55)","v":0.25000000000000006},null,null,null,null,null,"Subtotal",{"$f":"+SUM(O43:O55)","v":0},{"$f":"+SUM(P43:P55)","v":0},null,{"$f":"+SUM(R43:R55)","v":24},{"$f":"+SUM(S43:S55)","v":0.25000000000000006}]
[null,null,null,null,null,null,null,null,null,null,null,null,null,"x",null,null,"Variable","Puntos","%"]
["Gestión Saneamiento","La ASADA cuenta con Alcantarillado Sanitario\nSi su respuesta es \"No\": ha terminado el cuestionario, si es \"Sí\": continue el cuestionario",null,null,null,null,null,null,"No","Sí",null,null,0,{"$f":"+IF(M58=1,I58,IF(M58=2,J58,\"\"))","v":""}]
[null,"44. ¿Cuál es la condición del Alcantarillado Sanitario? ",null,null,null,null,2,0.03,"Sin\n tratamiento","Previsto para tratamiento","Con \ntratamiento",null,0,{"$f":"+IF(M59=1,I59,IF(M59=2,J59,IF(M59=3,K59,\"\")))","v":""},{"$f":"IF(N58=\"No\",\"\",IF(M59=1,0,IF(M59=2,1,IF(M59=3,2,0))))","v":0},{"$f":"IF(N58=\"No\",\"\",IF(M59=1,0,IF(M59=2,0.015,IF(M59=3,0.03,0))))","v":0},"Condición del Alcantarillado Sanitario",{"$f":"IF(N58=\"No\",\"\",IF(N59=\"Sin respuesta\",0,G59-O59))","v":2},{"$f":"IF(N58=\"No\",\"\",IF(N59=\"Sin respuesta\",0,H59-P59))","v":0.03},"G. Saneamiento"]
[null,"45. ¿Se presentan reportes operacionales del Alcantarillado Sanitario?   ",null,null,null,null,1,0.04,"No","Sí",null,null,0,{"$f":"+IF(M60=1,I60,IF(M60=2,J60,\"\"))","v":""},{"$f":"IF(N58=\"No\",\"\",IF(M60=1,0,IF(M60=2,1,IF(M60=3,,0))))","v":0},{"$f":"IF(N58=\"No\",\"\",IF(M60=1,0,IF(M60=2,0.04,0)))","v":0},"Presentación de reportes operacionales",{"$f":"IF(N58=\"No\",\"\",IF(N60=\"Sin respuesta\",0,G60-O60))","v":1},{"$f":"IF(N58=\"No\",\"\",IF(N60=\"Sin respuesta\",0,H60-P60))","v":0.04},"G. Saneamiento"]
[null,"46. ¿Cuál es el estado de las Plantas de Tratamiento de Aguas Residuales (PTAR)?",null,null,null,null,3,0.03,"Malo","Regular","Bueno","Excelente",0,{"$f":"+IF(M61=1,I61,IF(M61=2,J61,IF(M61=3,K61,IF(M61=4,L61,\"\"))))","v":""},{"$f":"IF(N58=\"No\",\"\",IF(M61=1,0,IF(M61=2,1,IF(M61=3,2,IF(M61=4,3,0)))))","v":0},{"$f":"IF(N58=\"No\",\"\",IF(M61=1,0,IF(M61=2,0.01,IF(M61=3,0.02,IF(M61=4,0.03,0)))))","v":0},"Estado de la PTAR",{"$f":"IF(N58=\"No\",\"\",IF(N61=\"Sin respuesta\",0,G61-O61))","v":3},{"$f":"IF(N58=\"No\",\"\",IF(N61=\"Sin respuesta\",0,H61-P61))","v":0.03},"G. Saneamiento"]
[null,null,null,null,null,null,{"$f":"+SUM(G59:G61)","v":6},{"$f":"+SUM(H59:H61)","v":0.1},null,null,null,null,null,"Subtotal",{"$f":"+SUM(O59:O61)","v":0},{"$f":"+SUM(P59:P61)","v":0},null,{"$f":"+SUM(R59:R61)","v":6},{"$f":"+SUM(S59:S61)","v":0.1}]
[null,null,null,null,null,null,{"$f":"+G62+G56+G41+G29+G22+G15","v":77},{"$f":"+H62+H56+H41+H29+H22+H15","v":1.1000000000000001},null,null,null,null,null,"TOTAL",{"$f":"+O62+O56+O41+O29+O22+O15","v":3},{"$f":"+P62+P56+P41+P29+P22+P15","v":1.83E-2},null,{"$f":"+R62+R56+R41+R29+R22+R15","v":74},{"$f":"+S62+S56+S41+S29+S22+S15","v":1.0817000000000001}]
[]
["2.1 Resultado general"]
[]
[null,"Categoría","Puntuación","Porcentaje",null,null,null,null,null,"Categoría","a","b"]
[null,{"$f":"+IF(D68<=0.39,\"D\",IF(D68<0.59,\"C\",IF(D68<0.8,\"B\",\"A\")))","v":"D"},{"$f":"+O63","v":3},{"$f":"+P63","v":1.83E-2},null,null,null,null,null,"START",0,0]
[null,{"$f":"+IF(D68<=0.39,\"Débil\",IF(D68<0.59,\"En desarrollo bajo\",IF(D68<0.8,\"En desarrollo alto\",\"Consolidada\")))","v":"Débil"},null,null,null,null,null,null,null,"D",0.4,0.4]
[null,null,null,null,null,null,null,null,null,"C",0.2,0.6]
[null,"Tabla de Rangos","Porcentaje",null,null,null,null,null,null,"B",0.2,0.8]
[null,"A - Consolidada","80% a 100%",null,null,null,null,null,null,"A",0.2,1]
[null,"B - En desarrollo alto","Entre 60% y 79%",null,null,null,null,null,null,"BLANC",1,0]
[null,"C - En desarrollo bajo","Entre 40% y 59%",null,null,null,null,null,null,"Value",{"$f":"+D68","v":1.83E-2}]
[null,"D - Débil","Menor a 40%",null,null,null,null,null,null,"Ancho",0.02]
[null,null,null,null,null,null,null,null,null,"End",{"$f":"+SUM(K68:K73)-SUM(K74:K75)","v":1.9617}]
["2.2 Resultado por Eje temático"]
[]
[]
[null,"Eje temático","Puntos totales","Porcentaje total","Puntos obtenidos","Porcentaje Obtenido","Diferencia ","Diferencia %"]
[null,"Gestión Comercial",{"$f":"+G15","v":17},{"$f":"+H15","v":0.15000000000000002},{"$f":"+O15","v":3},{"$f":"+P15","v":1.83E-2},{"$f":"+C81-E81","v":14},0.13170000000000001]
[null,"Gestión Comunal",{"$f":"+G22","v":10},{"$f":"+H22","v":0.15},{"$f":"+O22","v":0},{"$f":"+P22","v":0},10,0.15]
[null,"Gestión Ambiental y de Recurso Hídrico",{"$f":"+G29","v":5},{"$f":"+H29","v":0.15000000000000002},{"$f":"+O29","v":0},{"$f":"+P29","v":0},5,0.15000000000000002]
[null,"Gestión de Sistemas de Agua",{"$f":"+G41","v":15},{"$f":"+H41","v":0.30000000000000004},{"$f":"+O41","v":0},{"$f":"+P41","v":0},15,0.30000000000000004]
[null,"Gestión Administrativa y Financiera",{"$f":"+G56","v":24},{"$f":"+H56","v":0.25000000000000006},{"$f":"+O56","v":0},{"$f":"+P56","v":0},24,0.25000000000000006]
[null,"Gestión Saneamiento",{"$f":"+G62","v":6},{"$f":"+H62","v":0.1},{"$f":"+O62","v":0},{"$f":"+P62","v":0},6,0.1]
[null,"TOTAL",{"$f":"+SUM(C81:C86)","v":77},{"$f":"+SUM(D81:D86)","v":1.1000000000000003},3,1.83E-2,74,1.0817000000000003]

{"sheet":"Priorización","index":2,"n_rows":70,"n_cols":8,"rows_kept":70,"cut":false,"hidden":false,"merged":[[3,3,3,6],[54,0,56,0],[29,0,38,0],[1,0,1,2],[40,0,52,0],[6,0,15,0],[17,0,21,0],[23,0,27,0]]}
[]
["3. Priorización de variables"]
[]
[null,null,null,"Escala de priorización"]
["Eje temático","Eje temático","Variables","Criticidad","Posibilidad de solución","Recursos disponibles","Valor priorización \nDe 1 a 3 pts","Porcentaje faltante"]
[null,null,"Variable","Criticidad","Facilidad de solución","Recursos disponibles","Valor promedio"]
["Gestión Comercial","G.Comercial",{"$f":"+IF(Pivots!B4>0,Pivots!A4,\"\")","v":"Aplicación de tarifa vigente de ARESEP"},null,null,null,{"$f":"IF(C7=\"\",\"\",IFERROR((VLOOKUP(D7,$A$60:$B$62,2,0)+VLOOKUP(E7,$A$64:$B$66,2,0)+VLOOKUP(F7,$A$68:$B$70,2,0))/3,\"Calcular valor\"))","v":"Calcular valor"},{"$f":"+VLOOKUP(C7,Diagnóstico!$Q$5:$S$61,3,0)","v":0.05}]
[null,"G.Comercial",{"$f":"+IF(Pivots!B5>0,Pivots!A5,\"\")","v":"Local para atención de Usuarios"},null,null,null,{"$f":"IF(C8=\"\",\"\",IFERROR((VLOOKUP(D8,$A$60:$B$62,2,0)+VLOOKUP(E8,$A$64:$B$66,2,0)+VLOOKUP(F8,$A$68:$B$70,2,0))/3,\"Calcular valor\"))","v":"Calcular valor"},{"$f":"+VLOOKUP(C8,Diagnóstico!$Q$5:$S$61,3,0)","v":0.02}]
[null,"G.Comercial",{"$f":"+IF(Pivots!B6>0,Pivots!A6,\"\")","v":"Sistema de Facturación"},null,null,null,{"$f":"IF(C9=\"\",\"\",IFERROR((VLOOKUP(D9,$A$60:$B$62,2,0)+VLOOKUP(E9,$A$64:$B$66,2,0)+VLOOKUP(F9,$A$68:$B$70,2,0))/3,\"Calcular valor\"))","v":"Calcular valor"},{"$f":"+VLOOKUP(C9,Diagnóstico!$Q$5:$S$61,3,0)","v":0.01}]
[null,"G.Comercial",{"$f":"+IF(Pivots!B7>0,Pivots!A7,\"\")","v":"Morosidad mensual"},null,null,null,{"$f":"IF(C10=\"\",\"\",IFERROR((VLOOKUP(D10,$A$60:$B$62,2,0)+VLOOKUP(E10,$A$64:$B$66,2,0)+VLOOKUP(F10,$A$68:$B$70,2,0))/3,\"Calcular valor\"))","v":"Calcular valor"},{"$f":"+VLOOKUP(C10,Diagnóstico!$Q$5:$S$61,3,0)","v":0.01}]
[null,"G.Comercial",{"$f":"+IF(Pivots!B8>0,Pivots!A8,\"\")","v":"Macromedición existente"},null,null,null,"Calcular valor",{"$f":"+VLOOKUP(C11,Diagnóstico!$Q$5:$S$61,3,0)","v":0.01}]
[null,"G.Comercial",{"$f":"+IF(Pivots!B9>0,Pivots!A9,\"\")","v":"Sistema de Recaudación"},null,null,null,"Calcular valor",{"$f":"+VLOOKUP(C12,Diagnóstico!$Q$5:$S$61,3,0)","v":0.01}]
[null,"G.Comercial",{"$f":"+IF(Pivots!B10>0,Pivots!A10,\"\")","v":"Seguimiento de quejas"},null,null,null,"Calcular valor",{"$f":"+VLOOKUP(C13,Diagnóstico!$Q$5:$S$61,3,0)","v":0.01}]
[null,"G.Comercial",{"$f":"+IF(Pivots!B11>0,Pivots!A11,\"\")","v":"Micromedición instalada"},null,null,null,"Calcular valor",{"$f":"+VLOOKUP(C14,Diagnóstico!$Q$5:$S$61,3,0)","v":6.7000000000000002E-3}]
[null,"G.Comercial",{"$f":"+IF(Pivots!B12>0,Pivots!A12,\"\")","v":"Frecuencia de la lectura de hidrómetros"},null,null,null,"Calcular valor",{"$f":"+VLOOKUP(C15,Diagnóstico!$Q$5:$S$61,3,0)","v":5.0000000000000001E-3}]
[null,"G.Comercial",{"$f":"+IF(Pivots!B13>0,Pivots!A13,\"\")","v":""},null,null,null,"",{"$f":"+VLOOKUP(C16,Diagnóstico!$Q$5:$S$61,3,0)","v":{"$error":"#N/A"}}]
[]
["Gestión Comunal","G. Comunal",{"$f":"+IF(Pivots!B18>0,Pivots!A18,\"\")","v":"Socios en las Asambleas "},null,null,null,{"$f":"IF(C18=\"\",\"\",IFERROR((VLOOKUP(D18,$A$60:$B$62,2,0)+VLOOKUP(E18,$A$64:$B$66,2,0)+VLOOKUP(F18,$A$68:$B$70,2,0))/3,\"Calcular valor\"))","v":"Calcular valor"},{"$f":"+VLOOKUP(C18,Diagnóstico!$Q$5:$S$61,3,0)","v":0.03}]
[null,"G. Comunal",{"$f":"+IF(Pivots!B19>0,Pivots!A19,\"\")","v":"Campañas con escuelas/colegios"},null,null,null,"Calcular valor",{"$f":"+VLOOKUP(C19,Diagnóstico!$Q$5:$S$61,3,0)","v":0.03}]
[null,"G. Comunal",{"$f":"+IF(Pivots!B20>0,Pivots!A20,\"\")","v":"Porcentaje de usuarios que son socios"},null,null,null,"Calcular valor",{"$f":"+VLOOKUP(C20,Diagnóstico!$Q$5:$S$61,3,0)","v":0.03}]
[null,"G. Comunal",{"$f":"+IF(Pivots!B21>0,Pivots!A21,\"\")","v":"Plan de Afiliación "},null,null,null,"Calcular valor",{"$f":"+VLOOKUP(C21,Diagnóstico!$Q$5:$S$61,3,0)","v":0.03}]
[null,"G. Comunal",{"$f":"+IF(Pivots!B22>0,Pivots!A22,\"\")","v":"Plan de Transparencia y Rendición de cuentas "},null,null,null,"Calcular valor",{"$f":"+VLOOKUP(C22,Diagnóstico!$Q$5:$S$61,3,0)","v":0.03}]
[]
["Gestión Ambiental y del Recurso Hídrico","G. Ambiental y de Recurso Hídrico",{"$f":"+IF(Pivots!B27>0,Pivots!A27,\"\")","v":"Áreas de protección definidas"},null,null,null,{"$f":"IF(C24=\"\",\"\",IFERROR((VLOOKUP(D24,$A$60:$B$62,2,0)+VLOOKUP(E24,$A$64:$B$66,2,0)+VLOOKUP(F24,$A$68:$B$70,2,0))/3,\"Calcular valor\"))","v":"Calcular valor"},{"$f":"+VLOOKUP(C24,Diagnóstico!$Q$5:$S$61,3,0)","v":0.04}]
[null,"G. Ambiental y de Recurso Hídrico",{"$f":"+IF(Pivots!B28>0,Pivots!A28,\"\")","v":"Balance Hídrico"},null,null,null,"Calcular valor",{"$f":"+VLOOKUP(C25,Diagnóstico!$Q$5:$S$61,3,0)","v":0.04}]
[null,"G. Ambiental y de Recurso Hídrico",{"$f":"+IF(Pivots!B29>0,Pivots!A29,\"\")","v":"Inscripción de caudal en MINAE"},null,null,null,"Calcular valor",{"$f":"+VLOOKUP(C26,Diagnóstico!$Q$5:$S$61,3,0)","v":0.03}]
[null,"G. Ambiental y de Recurso Hídrico",{"$f":"+IF(Pivots!B30>0,Pivots!A30,\"\")","v":"Programas de educación ambiental en la comunidad"},null,null,null,"Calcular valor",{"$f":"+VLOOKUP(C27,Diagnóstico!$Q$5:$S$61,3,0)","v":0.02}]
[null,"G. Ambiental y de Recurso Hídrico",{"$f":"+IF(Pivots!B31>0,Pivots!A31,\"\")","v":"Programas de Adaptación Cambio Climático"},null,null,null,"Calcular valor",{"$f":"+VLOOKUP(C28,Diagnóstico!$Q$5:$S$61,3,0)","v":0.02}]
[]
["Gestión Sistemas de Agua","G. Sistemas de Agua",{"$f":"+IF(Pivots!B36>0,Pivots!A36,\"\")","v":"Calidad del agua – Cumplimiento del RCA"},null,null,null,{"$f":"IF(C30=\"\",\"\",IFERROR((VLOOKUP(D30,$A$60:$B$62,2,0)+VLOOKUP(E30,$A$64:$B$66,2,0)+VLOOKUP(F30,$A$68:$B$70,2,0))/3,\"Calcular valor\"))","v":"Calcular valor"},{"$f":"+VLOOKUP(C30,Diagnóstico!$Q$5:$S$61,3,0)","v":0.12}]
[null,"G. Sistemas de Agua",{"$f":"+IF(Pivots!B37>0,Pivots!A37,\"\")","v":"Calidad del agua – Periodicidad de los muestreos"},null,null,null,"Calcular valor",{"$f":"+VLOOKUP(C31,Diagnóstico!$Q$5:$S$61,3,0)","v":0.03}]
[null,"G. Sistemas de Agua",{"$f":"+IF(Pivots!B38>0,Pivots!A38,\"\")","v":"Calidad del agua – Sistema de Desinfección"},null,null,null,"Calcular valor",{"$f":"+VLOOKUP(C32,Diagnóstico!$Q$5:$S$61,3,0)","v":0.03}]
[null,"G. Sistemas de Agua",{"$f":"+IF(Pivots!B39>0,Pivots!A39,\"\")","v":"Manual de mantenimiento y operación del sistema"},null,null,null,"Calcular valor",{"$f":"+VLOOKUP(C33,Diagnóstico!$Q$5:$S$61,3,0)","v":0.02}]
[null,"G. Sistemas de Agua",{"$f":"+IF(Pivots!B40>0,Pivots!A40,\"\")","v":"Frecuencia de  interrupciones del servicio"},null,null,null,"Calcular valor",{"$f":"+VLOOKUP(C34,Diagnóstico!$Q$5:$S$61,3,0)","v":0.02}]
[null,"G. Sistemas de Agua",{"$f":"+IF(Pivots!B41>0,Pivots!A41,\"\")","v":"Mediciones de presión "},null,null,null,"Calcular valor",{"$f":"+VLOOKUP(C35,Diagnóstico!$Q$5:$S$61,3,0)","v":0.02}]
[null,"G. Sistemas de Agua",{"$f":"+IF(Pivots!B42>0,Pivots!A42,\"\")","v":"Plan de Gestión de Riesgos"},null,null,null,"Calcular valor",{"$f":"+VLOOKUP(C36,Diagnóstico!$Q$5:$S$61,3,0)","v":0.02}]
[null,"G. Sistemas de Agua",{"$f":"+IF(Pivots!B43>0,Pivots!A43,\"\")","v":"Calidad del agua – implementación de medidas correctivas"},null,null,null,"Calcular valor",{"$f":"+VLOOKUP(C37,Diagnóstico!$Q$5:$S$61,3,0)","v":0.02}]
[null,"G. Sistemas de Agua",{"$f":"+IF(Pivots!B44>0,Pivots!A44,\"\")","v":"Plan de instalación de hidrantes"},null,null,null,"Calcular valor",{"$f":"+VLOOKUP(C38,Diagnóstico!$Q$5:$S$61,3,0)","v":0.01}]
[null,"G. Sistemas de Agua",{"$f":"+IF(Pivots!B45>0,Pivots!A45,\"\")","v":"Contabilidad para hidrantes separada"},null,null,null,"Calcular valor",{"$f":"+VLOOKUP(C39,Diagnóstico!$Q$5:$S$61,3,0)","v":0.01}]
[]
["Gestión Administrativa Financiera","G. Administrativa y Financiera",{"$f":"+IF(Pivots!B50>0,Pivots!A50,\"\")","v":"Convenio de Delegación"},null,null,null,{"$f":"IF(C41=\"\",\"\",IFERROR((VLOOKUP(D41,$A$60:$B$62,2,0)+VLOOKUP(E41,$A$64:$B$66,2,0)+VLOOKUP(F41,$A$68:$B$70,2,0))/3,\"Calcular valor\"))","v":"Calcular valor"},{"$f":"+VLOOKUP(C41,Diagnóstico!$Q$5:$S$61,3,0)","v":0.1}]
[null,"G. Administrativa y Financiera",{"$f":"+IF(Pivots!B51>0,Pivots!A51,\"\")","v":"Fontanero"},null,null,null,"Calcular valor",{"$f":"+VLOOKUP(C42,Diagnóstico!$Q$5:$S$61,3,0)","v":0.03}]
[null,"G. Administrativa y Financiera",{"$f":"+IF(Pivots!B52>0,Pivots!A52,\"\")","v":"Plan de Trabajo Anual"},null,null,null,"Calcular valor",{"$f":"+VLOOKUP(C43,Diagnóstico!$Q$5:$S$61,3,0)","v":0.02}]
[null,"G. Administrativa y Financiera",{"$f":"+IF(Pivots!B53>0,Pivots!A53,\"\")","v":"Libro de Actas Junta Directiva"},null,null,null,"Calcular valor",{"$f":"+VLOOKUP(C44,Diagnóstico!$Q$5:$S$61,3,0)","v":0.01}]
[null,"G. Administrativa y Financiera",{"$f":"+IF(Pivots!B54>0,Pivots!A54,\"\")","v":"Sistemas de gestión para la ASADAS"},null,null,null,"Calcular valor",{"$f":"+VLOOKUP(C45,Diagnóstico!$Q$5:$S$61,3,0)","v":0.01}]
[null,"G. Administrativa y Financiera",{"$f":"+IF(Pivots!B55>0,Pivots!A55,\"\")","v":"Estados financieros al último trimestre"},null,null,null,"Calcular valor",{"$f":"+VLOOKUP(C46,Diagnóstico!$Q$5:$S$61,3,0)","v":0.01}]
[null,"G. Administrativa y Financiera",{"$f":"+IF(Pivots!B56>0,Pivots!A56,\"\")","v":"Libro de Socios"},null,null,null,"Calcular valor",{"$f":"+VLOOKUP(C47,Diagnóstico!$Q$5:$S$61,3,0)","v":0.01}]
[null,"G. Administrativa y Financiera",{"$f":"+IF(Pivots!B57>0,Pivots!A57,\"\")","v":"Estados Financieros enviados a AyA"},null,null,null,"Calcular valor",{"$f":"+VLOOKUP(C48,Diagnóstico!$Q$5:$S$61,3,0)","v":0.01}]
[null,"G. Administrativa y Financiera",{"$f":"+IF(Pivots!B58>0,Pivots!A58,\"\")","v":"Respaldos de información Financiera"},null,null,null,"Calcular valor",{"$f":"+VLOOKUP(C49,Diagnóstico!$Q$5:$S$61,3,0)","v":0.01}]
[null,"G. Administrativa y Financiera",{"$f":"+IF(Pivots!B59>0,Pivots!A59,\"\")","v":"Servicios de Contabilidad"},null,null,null,"Calcular valor",{"$f":"+VLOOKUP(C50,Diagnóstico!$Q$5:$S$61,3,0)","v":0.01}]
[null,"G. Administrativa y Financiera",{"$f":"+IF(Pivots!B60>0,Pivots!A60,\"\")","v":"Custodia de ingresos"},null,null,null,"Calcular valor",{"$f":"+VLOOKUP(C51,Diagnóstico!$Q$5:$S$61,3,0)","v":0.01}]
[null,"G. Administrativa y Financiera",{"$f":"+IF(Pivots!B61>0,Pivots!A61,\"\")","v":"Bodega de materiales para operación y mantenimiento"},null,null,null,"Calcular valor",{"$f":"+VLOOKUP(C52,Diagnóstico!$Q$5:$S$61,3,0)","v":0.01}]
[null,"G. Administrativa y Financiera",{"$f":"+IF(Pivots!B62>0,Pivots!A62,\"\")","v":"Libro de Actas Asamblea"},null,null,null,"Calcular valor",{"$f":"+VLOOKUP(C53,Diagnóstico!$Q$5:$S$61,3,0)","v":0.01}]
[]
["Gestión de Saneamiento","G. Saneamiento",{"$f":"+IF(Pivots!B67>0,Pivots!A67,\"\")","v":"Presentación de reportes operacionales"},null,null,null,{"$f":"IF(C55=\"\",\"\",IFERROR((VLOOKUP(D55,$A$60:$B$62,2,0)+VLOOKUP(E55,$A$64:$B$66,2,0)+VLOOKUP(F55,$A$68:$B$70,2,0))/3,\"Calcular valor\"))","v":"Calcular valor"},{"$f":"+VLOOKUP(C55,Diagnóstico!$Q$5:$S$61,3,0)","v":0.04}]
[null,"G. Saneamiento",{"$f":"+IF(Pivots!B68>0,Pivots!A68,\"\")","v":"Condición del Alcantarillado Sanitario"},null,null,null,"Calcular valor",{"$f":"+VLOOKUP(C56,Diagnóstico!$Q$5:$S$61,3,0)","v":0.03}]
[null,"G. Saneamiento",{"$f":"+IF(Pivots!B69>0,Pivots!A69,\"\")","v":"Estado de la PTAR"},null,null,null,"Calcular valor",{"$f":"+VLOOKUP(C57,Diagnóstico!$Q$5:$S$61,3,0)","v":0.03}]
[]
["Criticidad"]
["No crítico",1]
["Crítico",2]
["Muy crítico",3]
["Dificultad"]
["Díficil",1]
["Intermedia",2]
["Fácil",3]
["Recursos disponibles"]
["No se tiene",1]
["Se tiene aunque no suficiente",2]
["Se tienen recursos",3]

{"sheet":"Resumen","index":3,"n_rows":53,"n_cols":9,"rows_kept":53,"cut":false,"hidden":false,"merged":[[1,0,1,2],[15,6,15,7]]}
[]
["4. Elección de variables a incluir en el PME"]
[]
["Eje temático","Variables"," Valor priorización ","% Faltante","Variables a trabajar en PME",null,"4.1 Análisis de Escenarios"]
["G.Comercial","Macromedición existente",0,0.01]
[null,"Sistema de Recaudación",0,0.01,null,null,"a) Escenario actual luego de aplicación del cuestionario"]
[null,"Sistema de Facturación",0,0.01]
[null,"Morosidad mensual",0,0.01,null,null,"% Actual","Categoría Actual"]
[null,"Seguimiento de quejas",0,0.01,null,null,{"$f":"+Diagnóstico!D68","v":1.83E-2},{"$f":"+Diagnóstico!B68","v":"D"}]
[null,"Aplicación de tarifa vigente de ARESEP",0,0.05]
[null,"Local para atención de Usuarios",0,0.02,null,null,"b) Escenario con la inclusión de variables marcadas con \"X\""]
[null,"Disponibilidad de agua para nuevos servicios",0,0]
[null,"Frecuencia de la lectura de hidrómetros",0,5.0000000000000001E-3,null,null,"% con PME","Categoría con PME"]
[null,"Micromedición instalada",0,6.7000000000000002E-3,null,null,{"$f":"+SUMIF($E$5:$E$50,\"X\",$D$5:$D$50)+G9","v":1.83E-2},{"$f":"+IF(G14<=0.39,\"D\",IF(G14<0.59,\"C\",IF(G14<0.8,\"B\",\"A\")))","v":"D"}]
["G. Comunal","Socios en las Asambleas ",0,0.03]
[null,"Campañas con escuelas/colegios",0,0.03,null,null,"Número de variables a incluir en PME",null,{"$f":"COUNTIF($E$5:$E$50,\"X\")","v":0}]
[null,"Plan de Afiliación ",0,0.03]
[null,"Plan de Transparencia y Rendición de cuentas ",0,0.03]
[null,"Porcentaje de usuarios que son socios",0,0.03]
["G. Ambiental y de Recurso Hídrico","Balance Hídrico",0,0.04]
[null,"Programas de Adaptación Cambio Climático",0,0.02]
[null,"Áreas de protección definidas",0,0.04]
[null,"Inscripción de caudal en MINAE",0,0.03]
[null,"Programas de educación ambiental en la comunidad",0,0.02]
["G. Sistemas de Agua","Calidad del agua – Sistema de Desinfección",0,0.03]
[null,"Contabilidad para hidrantes separada",0,0.01]
[null,"Frecuencia de  interrupciones del servicio",0,0.02]
[null,"Mediciones de presión ",0,0.02]
[null,"Manual de mantenimiento y operación del sistema",0,0.02]
[null,"Plan de Gestión de Riesgos",0,0.02]
[null,"Plan de instalación de hidrantes",0,0.01]
[null,"Calidad del agua – Periodicidad de los muestreos",0,0.03]
[null,"Calidad del agua – Cumplimiento del RCA",0,0.12]
[null,"Calidad del agua – implementación de medidas correctivas",0,0.02]
["G. Administrativa y Financiera","Respaldos de información Financiera",0,0.01]
[null,"Estados Financieros enviados a AyA",0,0.01]
[null,"Sistemas de gestión para la ASADAS",0,0.01]
[null,"Servicios de Contabilidad",0,0.01]
[null,"Convenio de Delegación",0,0.1]
[null,"Fontanero",0,0.03]
[null,"Plan de Trabajo Anual",0,0.02]
[null,"Libro de Actas Junta Directiva",0,0.01]
[null,"Estados financieros al último trimestre",0,0.01]
[null,"Libro de Socios",0,0.01]
[null,"Custodia de ingresos",0,0.01]
[null,"Bodega de materiales para operación y mantenimiento",0,0.01]
[null,"Libro de Actas Asamblea",0,0.01]
["G. Saneamiento","Condición del Alcantarillado Sanitario",0,0.03]
[null,"Estado de la PTAR",0,0.03]
[null,"Presentación de reportes operacionales",0,0.04]
[]
[]
["X"]

{"sheet":"Plan","index":4,"n_rows":145,"n_cols":24,"rows_kept":145,"cut":false,"hidden":false,"merged":[[118,0,123,0],[118,1,123,1],[118,2,123,2],[125,0,130,0],[125,1,130,1],[125,2,130,2],[104,0,109,0],[104,1,109,1],[104,2,109,2],[111,0,116,0],[111,1,116,1],[111,2,116,2],[90,0,95,0],[90,1,95,1],[90,2,95,2],[97,0,102,0],[97,1,102,1],[97,2,102,2],[76,0,81,0],[76,1,81,1],[76,2,81,2],[83,0,88,0],[83,1,88,1],[83,2,88,2],[139,0,144,0],[1,0,1,2],[48,0,53,0],[55,0,60,0],[62,0,67,0],[69,0,74,0],[132,0,137,0],[13,0,18,0],[20,0,25,0],[27,0,32,0],[34,0,39,0],[41,0,46,0],[3,0,4,0],[6,0,11,0],[69,1,74,1],[69,2,74,2],[132,1,137,1],[132,2,137,2],[139,1,144,1],[139,2,144,2],[62,1,67,1],[62,2,67,2],[41,1,46,1],[41,2,46,2],[48,1,53,1],[48,2,53,2],[55,1,60,1],[55,2,60,2],[3,21,3,22],[6,1,11,1],[6,2,11,2],[13,1,18,1],[13,2,18,2],[3,4,4,4],[3,5,4,5],[3,7,3,18],[3,1,4,1],[3,2,4,2],[6,22,11,22],[13,22,18,22],[3,20,4,20],[27,1,32,1],[27,2,32,2],[34,1,39,1],[34,2,39,2],[20,1,25,1],[20,2,25,2],[20,22,25,22],[27,22,32,22],[34,22,39,22],[41,22,46,22],[48,22,53,22],[55,22,60,22],[62,22,67,22],[69,22,74,22],[76,22,81,22],[83,22,88,22],[125,22,130,22],[132,22,137,22],[139,22,144,22],[90,22,95,22],[97,22,102,22],[104,22,109,22],[111,22,116,22],[118,22,123,22]]}
[]
["5. Plan de Mejora y Eficiencia"]
[]
["Eje temático","Variables a mejorar","Objetivo",null,"Actividades","Responsable",null,"Calendario de actividades",null,null,null,null,null,null,null,null,null,null,null,null,"Costo estimado","Seguimiento"]
[null,null,null,null,null,null,null,"Ene","Feb","Mar","Abr","May","Jun","Jul","Ago","Set","Oct","Nov","Dic",null,null,"Cumplimiento","% de avance"]
[]
[{"$f":"IFERROR(IF(B7=\"\",\"\",VLOOKUP(B7,result.var,4,0)),\"\")","v":""},{"$f":"IF(Pivots!D4=\"Total General\",\"\",Pivots!D4)","v":""},{"$f":"IFERROR(IF(HLOOKUP(B$7,activ,2,0)=0,\"\",HLOOKUP(B$7,activ,2,0)),\"\")","v":""},3,{"$f":"IFERROR(IF(HLOOKUP(B$7,activ,D7,0)=0,\"\",HLOOKUP(B$7,activ,D7,0)),\"\")","v":""},null,null,null,null,null,null,null,null,null,null,null,null,null,null,null,null,null,{"$f":"IFERROR(COUNTIF($V7:$V12,\"Cumplido\")/(6-COUNTIF($E7:$E12,\"\")),\"\")","v":""},"Pendiente"]
[null,null,null,4,{"$f":"IFERROR(IF(HLOOKUP(B$7,activ,D8,0)=0,\"\",HLOOKUP(B$7,activ,D8,0)),\"\")","v":""},null,null,null,null,null,null,null,null,null,null,null,null,null,null,null,null,null,null,"En proceso"]
[null,null,null,5,"",null,null,null,null,null,null,null,null,null,null,null,null,null,null,null,null,null,null,"Cumplido"]
[null,null,null,6,""]
[null,null,null,7,""]
[null,null,null,8,""]
[]
[{"$f":"IFERROR(IF(B14=\"\",\"\",VLOOKUP(B14,result.var,4,0)),\"\")","v":""},{"$f":"IF(Pivots!D5=\"Total general\",\"\",Pivots!D5)","v":0},{"$f":"IFERROR(IF(HLOOKUP(B$14,activ,2,0)=0,\"\",HLOOKUP(B$14,activ,2,0)),\"\")","v":""},3,{"$f":"IFERROR(IF(HLOOKUP(B$14,activ,D14,0)=0,\"\",HLOOKUP(B$14,activ,D14,0)),\"\")","v":""},null,null,null,null,null,null,null,null,null,null,null,null,null,null,null,null,null,{"$f":"IFERROR(COUNTIF($V14:$V19,\"Cumplido\")/(6-COUNTIF($E14:$E19,\"\")),\"\")","v":""}]
[null,null,null,4,""]
[null,null,null,5,""]
[null,null,null,6,""]
[null,null,null,7,""]
[null,null,null,8,""]
[]
[{"$f":"IFERROR(IF(B21=\"\",\"\",VLOOKUP(B21,result.var,4,0)),\"\")","v":""},{"$f":"IF(Pivots!D6=\"Total general\",\"\",Pivots!D6)","v":0},{"$f":"IFERROR(IF(HLOOKUP(B$21,activ,2,0)=0,\"\",HLOOKUP(B$21,activ,2,0)),\"\")","v":""},3,{"$f":"IFERROR(IF(HLOOKUP(B$21,activ,D21,0)=0,\"\",HLOOKUP(B$21,activ,D21,0)),\"\")","v":""},null,null,null,null,null,null,null,null,null,null,null,null,null,null,null,null,null,{"$f":"IFERROR(COUNTIF($V21:$V26,\"Cumplido\")/(6-COUNTIF($E21:$E26,\"\")),\"\")","v":""}]
[null,null,null,4,""]
[null,null,null,5,""]
[null,null,null,6,""]
[null,null,null,7,""]
[null,null,null,8,""]
[]
[{"$f":"IFERROR(IF(B28=\"\",\"\",VLOOKUP(B28,result.var,4,0)),\"\")","v":""},{"$f":"IF(Pivots!D7=\"Total general\",\"\",Pivots!D7)","v":0},{"$f":"IFERROR(IF(HLOOKUP(B$28,activ,2,0)=0,\"\",HLOOKUP(B$28,activ,2,0)),\"\")","v":""},3,{"$f":"IFERROR(IF(HLOOKUP(B$28,activ,D28,0)=0,\"\",HLOOKUP(B$28,activ,D28,0)),\"\")","v":""},null,null,null,null,null,null,null,null,null,null,null,null,null,null,null,null,null,{"$f":"IFERROR(COUNTIF($V28:$V33,\"Cumplido\")/(6-COUNTIF($E28:$E33,\"\")),\"\")","v":""}]
[null,null,null,4,""]
[null,null,null,5,""]
[null,null,null,6,""]
[null,null,null,7,""]
[null,null,null,8,""]
[]
[{"$f":"IFERROR(IF(B35=\"\",\"\",VLOOKUP(B35,result.var,4,0)),\"\")","v":""},{"$f":"IF(Pivots!D8=\"Total general\",\"\",Pivots!D8)","v":0},{"$f":"IFERROR(IF(HLOOKUP(B$35,activ,2,0)=0,\"\",HLOOKUP(B$35,activ,2,0)),\"\")","v":""},3,{"$f":"IFERROR(IF(HLOOKUP(B$35,activ,D35,0)=0,\"\",HLOOKUP(B$35,activ,D35,0)),\"\")","v":""},null,null,null,null,null,null,null,null,null,null,null,null,null,null,null,null,null,{"$f":"IFERROR(COUNTIF($V35:$V40,\"Cumplido\")/(6-COUNTIF($E35:$E40,\"\")),\"\")","v":""}]
[null,null,null,4,""]
[null,null,null,5,""]
[null,null,null,6,""]
[null,null,null,7,""]
[null,null,null,8,""]
[]
[{"$f":"IFERROR(IF(B42=\"\",\"\",VLOOKUP(B42,result.var,4,0)),\"\")","v":""},{"$f":"IF(Pivots!D9=\"Total general\",\"\",Pivots!D9)","v":0},{"$f":"IFERROR(IF(HLOOKUP(B$42,activ,2,0)=0,\"\",HLOOKUP(B$42,activ,2,0)),\"\")","v":""},3,{"$f":"IFERROR(IF(HLOOKUP(B$42,activ,D42,0)=0,\"\",HLOOKUP(B$42,activ,D42,0)),\"\")","v":""},null,null,null,null,null,null,null,null,null,null,null,null,null,null,null,null,null,{"$f":"IFERROR(COUNTIF($V42:$V47,\"Cumplido\")/(6-COUNTIF($E42:$E47,\"\")),\"\")","v":""}]
[null,null,null,4,""]
[null,null,null,5,""]
[null,null,null,6,""]
[null,null,null,7,""]
[null,null,null,8,""]
[]
[{"$f":"IFERROR(IF(B49=\"\",\"\",VLOOKUP(B49,result.var,4,0)),\"\")","v":""},{"$f":"IF(Pivots!D10=\"Total general\",\"\",Pivots!D10)","v":0},{"$f":"IFERROR(IF(HLOOKUP(B$49,activ,2,0)=0,\"\",HLOOKUP(B$49,activ,2,0)),\"\")","v":""},3,{"$f":"IFERROR(IF(HLOOKUP(B$49,activ,D49,0)=0,\"\",HLOOKUP(B$49,activ,D49,0)),\"\")","v":""},null,null,null,null,null,null,null,null,null,null,null,null,null,null,null,null,null,{"$f":"IFERROR(COUNTIF($V49:$V54,\"Cumplido\")/(6-COUNTIF($E49:$E54,\"\")),\"\")","v":""}]
[null,null,null,4,""]
[null,null,null,5,""]
[null,null,null,6,""]
[null,null,null,7,""]
[null,null,null,8,""]
[]
[{"$f":"IFERROR(IF(B56=\"\",\"\",VLOOKUP(B56,result.var,4,0)),\"\")","v":""},{"$f":"IF(Pivots!D11=\"Total general\",\"\",Pivots!D11)","v":0},{"$f":"IFERROR(IF(HLOOKUP(B$56,activ,2,0)=0,\"\",HLOOKUP(B$56,activ,2,0)),\"\")","v":""},3,{"$f":"IFERROR(IF(HLOOKUP(B$56,activ,D56,0)=0,\"\",HLOOKUP(B$56,activ,D56,0)),\"\")","v":""},null,null,null,null,null,null,null,null,null,null,null,null,null,null,null,null,null,{"$f":"IFERROR(COUNTIF($V56:$V61,\"Cumplido\")/(6-COUNTIF($E56:$E61,\"\")),\"\")","v":""}]
[null,null,null,4,""]
[null,null,null,5,""]
[null,null,null,6,""]
[null,null,null,7,""]
[null,null,null,8,""]
[]
[{"$f":"IFERROR(IF(B63=\"\",\"\",VLOOKUP(B63,result.var,4,0)),\"\")","v":""},{"$f":"IF(Pivots!D12=\"Total general\",\"\",Pivots!D12)","v":0},{"$f":"IFERROR(IF(HLOOKUP(B$63,activ,2,0)=0,\"\",HLOOKUP(B$63,activ,2,0)),\"\")","v":""},3,{"$f":"IFERROR(IF(HLOOKUP(B$63,activ,D63,0)=0,\"\",HLOOKUP(B$63,activ,D63,0)),\"\")","v":""},null,null,null,null,null,null,null,null,null,null,null,null,null,null,null,null,null,{"$f":"IFERROR(COUNTIF($V63:$V68,\"Cumplido\")/(6-COUNTIF($E63:$E68,\"\")),\"\")","v":""}]
[null,null,null,4,""]
[null,null,null,5,""]
[null,null,null,6,""]
[null,null,null,7,""]
[null,null,null,8,""]
[]
[{"$f":"IFERROR(IF(B70=\"\",\"\",VLOOKUP(B70,result.var,4,0)),\"\")","v":""},{"$f":"IF(Pivots!D13=\"Total general\",\"\",Pivots!D13)","v":0},{"$f":"IFERROR(IF(HLOOKUP(B$70,activ,2,0)=0,\"\",HLOOKUP(B$28,activ,2,0)),\"\")","v":""},3,{"$f":"IFERROR(IF(HLOOKUP(B$70,activ,D70,0)=0,\"\",HLOOKUP(B$70,activ,D70,0)),\"\")","v":""},null,null,null,null,null,null,null,null,null,null,null,null,null,null,null,null,null,{"$f":"IFERROR(COUNTIF($V70:$V75,\"Cumplido\")/(6-COUNTIF($E70:$E75,\"\")),\"\")","v":""}]
[null,null,null,4,{"$f":"IFERROR(IF(HLOOKUP(B$70,activ,D71,0)=0,\"\",HLOOKUP(B$70,activ,D71,0)),\"\")","v":""}]
[null,null,null,5,{"$f":"IFERROR(IF(HLOOKUP(B$70,activ,D72,0)=0,\"\",HLOOKUP(B$70,activ,D72,0)),\"\")","v":""}]
[null,null,null,6,""]
[null,null,null,7,""]
[null,null,null,8,""]
[]
[{"$f":"IFERROR(IF(B77=\"\",\"\",VLOOKUP(B77,result.var,4,0)),\"\")","v":""},{"$f":"IF(Pivots!D14=\"Total general\",\"\",Pivots!D63)","v":0},{"$f":"IFERROR(IF(HLOOKUP(B$77,activ,2,0)=0,\"\",HLOOKUP(B$77,activ,2,0)),\"\")","v":""},3,{"$f":"IFERROR(IF(HLOOKUP(B$77,activ,D77,0)=0,\"\",HLOOKUP(B$77,activ,D77,0)),\"\")","v":""},null,null,null,null,null,null,null,null,null,null,null,null,null,null,null,null,null,{"$f":"IFERROR(COUNTIF($V77:$V82,\"Cumplido\")/(6-COUNTIF($E77:$E82,\"\")),\"\")","v":""}]
[null,null,null,4,""]
[null,null,null,5,""]
[null,null,null,6,""]
[null,null,null,7,""]
[null,null,null,8,""]
[]
[{"$f":"IFERROR(IF(B84=\"\",\"\",VLOOKUP(B84,result.var,4,0)),\"\")","v":""},{"$f":"IF(Pivots!D15=\"Total general\",\"\",Pivots!D64)","v":0},{"$f":"IFERROR(IF(HLOOKUP(B$84,activ,2,0)=0,\"\",HLOOKUP(B$84,activ,2,0)),\"\")","v":""},3,{"$f":"IFERROR(IF(HLOOKUP(B$84,activ,D84,0)=0,\"\",HLOOKUP(B$84,activ,D84,0)),\"\")","v":""},null,null,null,null,null,null,null,null,null,null,null,null,null,null,null,null,null,{"$f":"IFERROR(COUNTIF($V84:$V89,\"Cumplido\")/(6-COUNTIF($E84:$E89,\"\")),\"\")","v":""}]
[null,null,null,4,""]
[null,null,null,5,""]
[null,null,null,6,""]
[null,null,null,7,""]
[null,null,null,8,""]
[]
[{"$f":"IFERROR(IF(B91=\"\",\"\",VLOOKUP(B91,result.var,4,0)),\"\")","v":""},{"$f":"IF(Pivots!D16=\"Total general\",\"\",Pivots!D65)","v":0},{"$f":"IFERROR(IF(HLOOKUP(B$91,activ,2,0)=0,\"\",HLOOKUP(B$91,activ,2,0)),\"\")","v":""},3,{"$f":"IFERROR(IF(HLOOKUP(B$91,activ,D91,0)=0,\"\",HLOOKUP(B$91,activ,D91,0)),\"\")","v":""},null,null,null,null,null,null,null,null,null,null,null,null,null,null,null,null,null,{"$f":"IFERROR(COUNTIF($V91:$V96,\"Cumplido\")/(6-COUNTIF($E91:$E96,\"\")),\"\")","v":""}]
[null,null,null,4,""]
[null,null,null,5,""]
[null,null,null,6,""]
[null,null,null,7,""]
[null,null,null,8,""]
[]
[{"$f":"IFERROR(IF(B98=\"\",\"\",VLOOKUP(B98,result.var,4,0)),\"\")","v":""},{"$f":"IF(Pivots!D17=\"Total general\",\"\",Pivots!D66)","v":0},{"$f":"IFERROR(IF(HLOOKUP(B$98,activ,2,0)=0,\"\",HLOOKUP(B$98,activ,2,0)),\"\")","v":""},3,{"$f":"IFERROR(IF(HLOOKUP(B$98,activ,D98,0)=0,\"\",HLOOKUP(B$98,activ,D98,0)),\"\")","v":""},null,null,null,null,null,null,null,null,null,null,null,null,null,null,null,null,null,{"$f":"IFERROR(COUNTIF($V98:$V103,\"Cumplido\")/(6-COUNTIF($E98:$E103,\"\")),\"\")","v":""}]
[null,null,null,4,""]
[null,null,null,5,""]
[null,null,null,6,""]
[null,null,null,7,""]
[null,null,null,8,""]
[]
[{"$f":"IFERROR(IF(B105=\"\",\"\",VLOOKUP(B105,result.var,4,0)),\"\")","v":""},{"$f":"IF(Pivots!D18=\"Total general\",\"\",Pivots!D67)","v":0},{"$f":"IFERROR(IF(HLOOKUP(B$105,activ,2,0)=0,\"\",HLOOKUP(B$105,activ,2,0)),\"\")","v":""},3,{"$f":"IFERROR(IF(HLOOKUP(B$105,activ,D105,0)=0,\"\",HLOOKUP(B$105,activ,D105,0)),\"\")","v":""},null,null,null,null,null,null,null,null,null,null,null,null,null,null,null,null,null,{"$f":"IFERROR(COUNTIF($V105:$V110,\"Cumplido\")/(6-COUNTIF($E105:$E110,\"\")),\"\")","v":""}]
[null,null,null,4,""]
[null,null,null,5,""]
[null,null,null,6,""]
[null,null,null,7,""]
[null,null,null,8,""]
[]
[{"$f":"IFERROR(IF(B112=\"\",\"\",VLOOKUP(B112,result.var,4,0)),\"\")","v":""},{"$f":"IF(Pivots!D19=\"Total general\",\"\",Pivots!D68)","v":0},{"$f":"IFERROR(IF(HLOOKUP(B$112,activ,2,0)=0,\"\",HLOOKUP(B$112,activ,2,0)),\"\")","v":""},3,{"$f":"IFERROR(IF(HLOOKUP(B$112,activ,D112,0)=0,\"\",HLOOKUP(B$112,activ,D112,0)),\"\")","v":""},null,null,null,null,null,null,null,null,null,null,null,null,null,null,null,null,null,{"$f":"IFERROR(COUNTIF($V112:$V117,\"Cumplido\")/(6-COUNTIF($E112:$E117,\"\")),\"\")","v":""}]
[null,null,null,4,""]
[null,null,null,5,""]
[null,null,null,6,""]
[null,null,null,7,""]
[null,null,null,8,""]
[]
[{"$f":"IFERROR(IF(B119=\"\",\"\",VLOOKUP(B119,result.var,4,0)),\"\")","v":""},{"$f":"IF(Pivots!D20=\"Total general\",\"\",Pivots!D69)","v":0},{"$f":"IFERROR(IF(HLOOKUP(B$119,activ,2,0)=0,\"\",HLOOKUP(B$119,activ,2,0)),\"\")","v":""},3,{"$f":"IFERROR(IF(HLOOKUP(B$119,activ,D119,0)=0,\"\",HLOOKUP(B$119,activ,D119,0)),\"\")","v":""},null,null,null,null,null,null,null,null,null,null,null,null,null,null,null,null,null,{"$f":"IFERROR(COUNTIF($V119:$V124,\"Cumplido\")/(6-COUNTIF($E119:$E124,\"\")),\"\")","v":""}]
[null,null,null,4,""]
[null,null,null,5,""]
[null,null,null,6,""]
[null,null,null,7,""]
[null,null,null,8,""]
[]
[{"$f":"IFERROR(IF(B126=\"\",\"\",VLOOKUP(B126,result.var,4,0)),\"\")","v":""},{"$f":"IF(Pivots!D21=\"Total general\",\"\",Pivots!D70)","v":0},{"$f":"IFERROR(IF(HLOOKUP(B$126,activ,2,0)=0,\"\",HLOOKUP(B$126,activ,2,0)),\"\")","v":""},3,{"$f":"IFERROR(IF(HLOOKUP(B$126,activ,D126,0)=0,\"\",HLOOKUP(B$126,activ,D126,0)),\"\")","v":""},null,null,null,null,null,null,null,null,null,null,null,null,null,null,null,null,null,{"$f":"IFERROR(COUNTIF($V126:$V131,\"Cumplido\")/(6-COUNTIF($E126:$E131,\"\")),\"\")","v":""}]
[null,null,null,4,""]
[null,null,null,5,""]
[null,null,null,6,""]
[null,null,null,7,""]
[null,null,null,8,""]
[]
["ADICIONAL",null,null,3,null,null,null,null,null,null,null,null,null,null,null,null,null,null,null,null,null,null,{"$f":"IFERROR(COUNTIF($V133:$V138,\"Cumplido\")/(6-COUNTIF($E133:$E138,\"\")),\"\")","v":""}]
[null,null,null,4]
[null,null,null,5]
[null,null,null,6]
[null,null,null,7]
[null,null,null,8]
[]
["ADICIONAL",null,null,3,null,null,null,null,null,null,null,null,null,null,null,null,null,null,null,null,null,null,{"$f":"IFERROR(COUNTIF($V140:$V145,\"Cumplido\")/(6-COUNTIF($E140:$E145,\"\")),\"\")","v":""}]
[null,null,null,4]
[null,null,null,5]
[null,null,null,6]
[null,null,null,7]
[null,null,null,8]

{"sheet":"DB act","index":5,"n_rows":12,"n_cols":47,"rows_kept":12,"cut":false,"hidden":true,"merged":[]}
["BD_activ","Convenio de Delegación","Plan de Trabajo Anual","Libro de Actas Junta Directiva","Libro de Actas Asamblea","Libro de Socios","Fontanero","Servicios de Contabilidad","Estados financieros al último trimestre","Custodia de ingresos","Respaldos de información Financiera","Estados Financieros enviados a AyA","Bodega de materiales para operación y mantenimiento","Sistemas de gestión para la ASADAS","Disponibilidad de agua para nuevos servicios","Micromedición instalada","Macromedición existente","Frecuencia de la lectura de hidrómetros","Sistema de Facturación","Sistema de Recaudación","Morosidad mensual","Aplicación de tarifa vigente de ARESEP","Local para atención de Usuarios","Seguimiento de quejas","Porcentaje de usuarios que son socios","Socios en las Asambleas ","Plan de Afiliación ","Campañas con escuelas/colegios","Plan de Transparencia y Rendición de cuentas ","Áreas de protección definidas","Programas de Adaptación Cambio Climático","Balance hídrico","Programas de educación ambiental en la comunidad","Inscripción de caudal en MINAE","Manual de mantenimiento y operación del sistema","Frecuencia de  interrupciones del servicio","Mediciones de presión ","Plan de Gestión de Riesgos","Calidad del agua – Periodicidad de los muestreos","Calidad del agua – Cumplimiento del RCA","Calidad del agua – implementación de medidas correctivas","Calidad del agua – Sistema de Desinfección","Plan de instalación de hidrantes","Contabilidad para hidrantes separada","Condición del Alcantarillado Sanitario","Presentación de reportes operacionales","Estado de la PTAR"]
["Objetivo","Contar con el convenio de delegación para prestar servicios públicos "," Contar con el Plan Anual como  instrumento de gestión para alcanzar los objetivos de la ASADA ","Contar con un libro de actas para actualizar acuerdos tomados por Junta Directiva","Contar con un libro de actas de asamblea para actualizar acuerdos en la asamblea anual y extraordinaria","Contar con un libro de socios y boleta de afiliación para anotar actualizaciones a la lista de socios ","Contar con fontanero contratado para la gestión operativa del acueducto","Contar con un contador contratado para generar, asesorar, comunicar sobre la información financiera de la ASADA","Contar con estados financieros actualizados para mejorar la rendición de cuentas interna y externa","Contar con una cuenta a nombre de la ASADA para fortalecer control interno de la ASADA","Contar con procedimientos para que la información financiera ya sea física o digital se guarde apropiadamente","Contar con un registro de estados financieros enviados al AYA para cumplir convenio de delegación ","Contar con una bodega para mantener seguro, ordenado y controlado los materiales con que cuenta la ASADA ","Contar con un sistema informático para una gestión más ágil de la ASADAS","Contar con un estudio de capacidad hídrica e hidráulica para conocer la disponibilidad de agua para nuevos servicios","Contar con plan de micro medición para la reducción de agua no contabilizada","Contar con equipos de macro medición para conocer cuánta agua producen las fuentes ","Contar con un plan mensual para la lectura de micro medidores ","Contar con un sistema informático para la facturación ","Contar con un sistema informático para la recaudación ","Contar con un plan para reducir los pendientes de cobro","Aplicar la tarifa vigente de ARESEP para un cobro justo y real del agua","Contar con un espacio para la atención de usuarios"," Contar con un registro para la recepción quejas y resolución de reclamos","Contar con un plan de afiliación para aumentar la participación de miembros con vos y voto","Contar con un plan de afiliación para aumentar la participación en la asamblea"," Contar con un plan de afiliación para aumentar el número de asociados a la ASADA","Contar con un plan de promoción para realizar campañas con escuelas y colegios","Contar con un plan para una gestión basada en principios de transparencia y rendición de cuentas.","Contar con el Estudio Hidrogeológico para que la ASADA conozca donde se recargan sus fuentes de agua","Contar con un Plan para la Adaptación al cambio climático","Contar con un Estudio de balance hídrico como base para poder otorgar nuevas disponibilidades de agua","Contar con un plan de promoción para realizar campañas en la comunidad","Contar con un estudio de nuevas fuentes para enviar solicitud al AYA para inscripción de caudal","Contar con un manual de mantenimiento y operación del sistema para garantizar la sostenibilidad del servicio de agua","Contar con un registro actualizado de continuidad del servicio para conocer el día, tiempo y acciones correctivas por interrupción","Contar con un programa de medición de presión para garantizar agua en cantidad a sus usuarios ","Contar con un plan de gestión de riesgos, para reducir la vulnerabilidad y consecuencia de los riesgos en la ASADA","Contar con programa de periodicidad de los muestreos para garantizar la calidad de agua a sus usuarios","Cumplir con el Reglamento de Calidad de Agua para garantizar la calidad del agua a sus usuarios","Implementar medidas correctivas dadas por el Laboratorio de Agua del AYA para garantizar la calidad del agua a sus usuarios","Contar con un sistema de desinfección para garantizar la calidad del agua","Contar con un plan de instalación de hidrantes para atención de emergencias","Contar contabilidad separada de hidrantes para conocer costos"]
[1,"Tomar el acuerdo de Junta directiva que autoriza al Presidente a gestionar y firmar el convenio ante el AYA","Elaborar un diagnóstico de la situación de la ASADA","Buscar el libro de actas","Buscar el libro de Asambleas","Crear plan de Afiliación","Definir modalidad de contratación del fontanero","Buscar profesionales o empresas que den servicios de contaduría para Asadas","Solicitar al contador estados financieros","Crear cuenta bancaria a nombre de la ASADA","Establecer un procedimiento de respaldo para la documentación financiera física que reciba la ASADA","Pedir los estados financieros al contador","Establecer requerimientos de espacio para contar con una bodega","Conocer ofertas de mercado de sistemas computarizados para la gestión de ASADAS:","Desarrollar estudio de Capacidad Hídrica","Realizar un diagnóstico de micro medición existente","Definir requerimientos de macro medición","Establecer un plan de lecturas de micro medidores mensual","Buscar ofertas de mercado sobre sistemas computarizados para la gestión de ASADAS","Buscar ofertas de mercado sobre sistemas computarizados para la gestión de ASADAS:","Lineamiento de Junta Directiva de reducción de pendientes","Aplicar la tarifa aplicada por la ARESEP","Establecer requerimientos de espacio para atención de usuarios","Establecer un registro de recepción y resolución reclamos","Elaborar un plan de afiliación","Elaborar un plan de Afiliación","Elaborar un plan de Afiliación","Elaborar un plan de promoción","Hacer el plan considerando el alineamiento con las otras áreas","Realizar un Estudio Hidrogeológico","Hacer un plan de Adaptación al cambio climático","Realizar un estudio de balance hídrico","Elaborar un plan de promoción","Estudiar la nueva fuente en cuanto a producción y calidad","Identificar y evaluar los componentes del sistema de acueducto","Establecer un registro de Continuidad del servicio","Establecer un programa de mediciones","Hacer el plan de Gestión de Riesgo","Establecer periodicidad de muestreos de acuerdo al reglamento de capacidad de agua","Analizar los resultados del laboratorio del agua","Analizar el parámetro no cumplido","Definir requerimiento de Desinfección","Hacer un plan de instalación de hidrantes","Llevar registros contables separados para hidrantes"]
[2,"Buscar documentos y requisitos requeridos para solicitar el convenio ante el  AYA","Definir actividades que se incluirán en el plan","Actualizar registrando acuerdos tomados por la Junta Directiva","Actualizar el libro una vez al año con los acuerdos de la Asamblea","La ASADA debe contar con una boleta de afiliación que incluya los datos:","Buscar candidatos elegibles","Establecer un contrato de servicios con el contador","Remitir estados financieros a la oficina Regional","Depositar todos los ingresos recibidos por la ASADA inmediatamente en la cuenta","Establecer procedimientos de respaldo para la información digital de información","Remitir copia de estados financieros a la ORAC","Buscar el espacio","Cotizar el servicio con las empresas proveedoras","Desarrollar estudio de Capacidad Hidráulica","Desarrollar un Plan de sensibilización de reducción agua no contabilizada a los usuarios","Adquisición e instalación de macro medidores","Ejecutar el plan de restauración","Solicitar una demostración del sistema de facturación","Solicitar una demostración del sistema de recaudación","Establecer un plan de reducción de pendientes de cobro",null,"Equipar el espacio","Dar seguimiento a las quejas","Diseñar boletas de afiliación","Aumentar la participación en la asamblea de miembros con voz y voto","Desarrollar mecanismos de divulgación","Coordinar y Planificar con las escuelas y colegios al inicio del año","Aprobar el plan por junta directiva","Definir donde están las áreas de protección","Aprobar por Junta Directiva","Contratar al especialista","Coordinar y Planificar con líderes comunales","Enviar solicitud al AYA para Inscripción de caudal","Definir frecuencia de mantenimiento","Indicar el día de interrupción","Contar con un medidor de presión","Aprobar el plan por junta directiva","Definir Periodicidad","Implementar medidas correctivas: si no cumple","Realizar correcciones especificas por parámetro","Buscar ofertas de Mercado","Aprobar por Junta Directiva"]
[3,"Entregar al AYA documentos y requisitos","Aprobar el plan mediante acuerdo de Junta Directiva","Libro de actas debe estar firmado por el presidente y secretaria","En caso de Asamblea extraordinaria, también actualizar","La Junta directiva conoce la Boleta y acuerda afiliar o rechazar la afiliación","Contratar el fontanero","Recibir y analizar periódicamente los estados financieros que entregue el contador","Seguimiento a los estados financieros","Establecer mecanismos de control para el manejo de la cuenta",null,"Mantener un registro de estados financieros enviados al AYA","Equipar el espacio de la bodega","Buscar la mejor opción para la ASADA","Para ambas se necesita el apoyo de un ingeniero, en algunos casos el AYA puede apoyar","Desarrollar un Plan para instalar los medidores que falten","Establecer un registro de mediciones del macro medidor","Establecer rutas de lectura","Cotizar el servicio con las empresas proveedoras","Cotizar el servicio con las empresas proveedoras","Establecer procedimiento de reconexión",null,"Definir horarios de atención a usuarios","Comunicar a los usuarios la resolución de su queja","Definir procedimiento de afiliaciones","Desarrollar Mecanismos de divulgación","Recalcar la importancia de ser afiliado","Celebración del día del agua, ambiente y del árbol con jóvenes y niños","Ejecutar el plan","Demarcar de áreas de protección","Conseguir Recursos","Recepción y análisis del estudio técnico","Celebración del día del agua, ambiente y del árbol","AYA realiza la inscripción al MINAE","Definir rutinas de operación","Indicar tiempos de interrupción","Definir lugares del sistema para medir presión",null,"Muestra según la periodicidad",null,"La acción correctiva es diferente dependiendo del indicador","Adquirir e Instalar el equipo","Conseguir Recursos"]
[4,"Dar seguimiento ante la oficina regional de los tramites","Enviar copia de Plan de Trabajo aprobado a la Oficina Regional","Actualizar el libro cada sesión de Junta Directiva","Libro Actas de Asamblea firmado por el presidente y secretaria","Si la Junta Directiva acuerda afiliar anotan los datos en la lista de socios","Formalizar relación laboral con la ASADA",null,"Cumplimiento a las recomendaciones del contador",null,null,null,"Mantener ordenado el stock bodega","Contratar el servicio o comprar el sistema",null,"Realizar lecturas de manera periódicas",null,"Este es un trabajo que realiza el fontanero","Buscar la mejor opción para la ASADA","Buscar la mejor opción para la ASADA",null,null,null,null,null,"Aprobar el plan por junta directiva","Aprobar el plan por junta directiva","Visitar de fuentes de agua",null,"Realizar Actividades de Protección de estas áreas","Ejecutar y dar Seguimiento","Implementar las mejoras y recomendaciones dadas por el estudio técnico","Realizar Visita de fuentes de agua","AYA envía respuesta del MINAE a la ASADA","Aprobar manual en Junta Directiva","Acciones correctivas","Definir frecuencia de mediciones",null,"Ajustarse al Reglamento manual",null,"Ejecutar acción correctiva","Capacitar Fontanero en su uso y dosificación","Ejecutar y dar Seguimiento"]
[5,null,null,null,"Seguir Requisitos para libros de actas según ley 218","Libro de socios debe estar actualizado cada vez que un usuario se afilia",null,null,null,null,null,null,"Establecer controles de entrada y salida",null,null,"Contar con un Plan de mantenimiento y sustitución de medidores",null,null,"Contratar el servicio o comprar el sistema","Contratar el servicio o comprar el sistema",null,null,null,null,null,"Ejecutar el plan","Ejecutar el plan","Realizar actividades de reforestación",null,"Recuperar de áreas de protección","Utilizar metodología brindada por el AYA",null,"Realizar Actividades de reforestación",null,"Capacitar al fontanero en el uso del Manual","Implementar el Registro",null,null,null,null,null,"Establecer Programa de mantenimiento del equipo"]
[6,null,null,null,null,null,null,null,null,null,null,null,"Establecer inventarios de materiales en bodega periódicamente",null,null,null,null,null,null,"Incluir vínculo con agente recaudador (banco o cooperativa)",null,null,null,null,null,null,null,null,null,"Buscar el apoyo de un ingeniero especialista"]
[7]
[8]
[9]
[10]

{"sheet":"Información","index":6,"n_rows":171,"n_cols":5,"rows_kept":171,"cut":false,"hidden":false,"merged":[[34,1,36,1],[37,2,38,2],[37,1,38,1],[39,2,41,2],[42,2,47,2],[42,1,47,1],[39,1,41,1],[48,2,51,2],[48,1,51,1],[132,0,167,0],[168,0,170,0],[1,2,4,2],[1,1,4,1],[5,2,8,2],[5,1,8,1],[9,2,12,2],[9,1,12,1],[13,2,17,2],[13,1,17,1],[18,2,22,2],[18,1,22,1],[23,2,26,2],[23,1,26,1],[27,2,29,2],[27,1,29,1],[30,2,33,2],[30,1,33,1],[34,2,36,2],[84,2,86,2],[84,1,86,1],[52,0,86,0],[90,2,94,2],[90,1,94,1],[87,2,89,2],[87,1,89,1],[87,0,107,0],[72,2,76,2],[72,1,76,1],[77,2,79,2],[77,1,79,1],[81,2,83,2],[81,1,83,1],[60,2,62,2],[60,1,62,1],[63,2,66,2],[63,1,66,1],[67,2,71,2],[67,1,71,1],[52,2,54,2],[52,1,54,1],[55,2,59,2],[55,1,59,1],[108,0,131,0],[114,2,118,2],[114,1,118,1],[119,1,122,1],[119,2,122,2],[95,2,99,2],[95,1,99,1],[100,2,104,2],[100,1,104,1],[105,2,107,2],[105,1,107,1],[158,1,162,1],[108,1,113,1],[108,2,113,2],[146,2,147,2],[146,1,147,1],[148,2,151,2],[148,1,151,1],[152,2,153,2],[152,1,153,1],[132,2,136,2],[132,1,136,1],[137,2,141,2],[137,1,141,1],[142,2,145,2],[142,1,145,1],[123,2,127,2],[123,1,127,1],[128,2,131,2],[128,1,131,1],[52,4,54,4],[55,4,59,4],[60,4,62,4],[63,4,66,4],[67,4,71,4],[163,1,166,1],[163,2,166,2],[1,0,51,0],[1,4,4,4],[5,4,8,4],[9,4,12,4],[13,4,17,4],[18,4,22,4],[23,4,26,4],[27,4,29,4],[30,4,33,4],[34,4,36,4],[37,4,38,4],[39,4,41,4],[42,4,47,4],[48,4,51,4],[154,2,157,2],[154,1,157,1],[158,2,162,2],[90,4,94,4],[95,4,99,4],[100,4,104,4],[105,4,107,4],[108,4,113,4],[72,4,76,4],[77,4,79,4],[81,4,83,4],[84,4,86,4],[87,4,89,4],[154,4,157,4],[158,4,162,4],[163,4,166,4],[137,4,141,4],[142,4,145,4],[146,4,147,4],[148,4,151,4],[152,4,153,4],[114,4,118,4],[119,4,122,4],[123,4,127,4],[128,4,131,4],[132,4,136,4]]}
["Eje temático","Variable","Objetivo","Actividades para completar objetivo","Evidencia"]
["Gestión Administrativa y Financiera","Convenio de Delegación","Contar con el convenio de delegación para prestar servicios públicos ","Tomar el acuerdo de Junta directiva que autoriza al Presidente a gestionar y firmar el convenio ante el AYA","Convenio de delegación firmado"]
[null,null,null,"Buscar documentos y requisitos requeridos para solicitar el convenio ante el  AYA"]
[null,null,null,"Entregar al AYA documentos y requisitos"]
[null,null,null,"Dar seguimiento ante la oficina regional de los trámites"]
[null,"Plan de Trabajo Anual"," Contar con el Plan Anual como  instrumento de gestión para alcanzar los objetivos de la ASADA ","Elaborar un diagnóstico de la situación de la ASADA","Plan de Trabajo Anual"]
[null,null,null,"Definir actividades que se incluirán en el plan"]
[null,null,null,"Aprobar el plan mediante acuerdo de Junta Directiva"]
[null,null,null,"Enviar copia de Plan de Trabajo aprobado a la Oficina Regional"]
[null,"Libro de Actas Junta Directiva","Contar con un libro de actas para actualizar acuerdos tomados por Junta Directiva","Buscar el libro de actas","Libro de Actas Junta Directiva firmado y actualizado"]
[null,null,null,"Actualizar registrando acuerdos tomados por la Junta Directiva"]
[null,null,null,"Libro de actas debe estar firmado por el presidente y secretaria"]
[null,null,null,"Actualizar el libro cada sesión de Junta Directiva"]
[null,"Libro de Actas Asamblea","Contar con un libro de actas de asamblea para actualizar acuerdos en la asamblea anual y extraordinaria","Buscar el libro de Asambleas","Libro de Actas Asamblea actualizado"]
[null,null,null,"Actualizar el libro una vez al año con los acuerdos de la Asamblea"]
[null,null,null,"En caso de Asamblea extraordinaria, también actualizar"]
[null,null,null,"Libro Actas de Asamblea firmado por el presidente y secretaria"]
[null,null,null,"Seguir Requisitos para libros de actas según ley 218"]
[null,"Libro de Socios","Contar con un libro de socios y boleta de afiliación para anotar actualizaciones a la lista de socios ","Crear plan de Afiliación","Libro de Socios actualizado"]
[null,null,null,"La ASADA debe contar con una boleta de afiliación que incluya todos los datos pertinentes"]
[null,null,null,"La Junta directiva conoce la Boleta y acuerda afiliar o rechazar la afiliación"]
[null,null,null,"Si la Junta Directiva acuerda afiliar anotan los datos en la lista de socios"]
[null,null,null,"Libro de socios debe estar actualizado cada vez que un usuario se afilia"]
[null,"Fontanero","Contar con fontanero contratado para la gestión operativa del acueducto","Definir modalidad de contratación del fontanero","Contrato de trabajo con fontanero"]
[null,null,null,"Buscar candidatos elegibles"]
[null,null,null,"Contratar el fontanero"]
[null,null,null,"Formalizar relación laboral con la ASADA"]
[null,"Servicios de Contabilidad","Contar con un contador contratado para generar, asesorar, comunicar sobre la información financiera de la ASADA","Buscar profesionales o empresas que den servicios de contabilidad para Asadas","Libros contables al día"]
[null,null,null,"Establecer un contrato de servicios con el contador"]
[null,null,null,"Recibir y analizar periódicamente los estados financieros que entregue el contador"]
[null,"Estados financieros actualizados","Contar con estados financieros actualizados para mejorar la rendición de cuentas interna y externa","Solicitar al contador estados financieros","Estados financieros actualizados"]
[null,null,null,"Remitir estados financieros a la oficina Regional"]
[null,null,null,"Seguimiento a los estados financieros"]
[null,null,null,"Cumplimiento a las recomendaciones del contador"]
[null,"Custodia de ingresos","Contar con una cuenta a nombre de la ASADA para fortalecer control interno de la ASADA","Crear cuenta bancaria a nombre de la ASADA","Información de cuenta bancaria a nombre de la ASADA"]
[null,null,null,"Depositar todos los ingresos recibidos por la ASADA inmediatamente en la cuenta"]
[null,null,null,"Establecer mecanismos de control para el manejo de la cuenta"]
[null,"Respaldos de información Financiera","Contar con procedimientos para que la información financiera ya sea física o digital se guarde apropiadamente","Establecer un procedimiento de respaldo para la documentación financiera física que reciba la ASADA","Respaldos de información Financiera"]
[null,null,null,"Establecer procedimientos de respaldo para la información digital de información"]
[null,"Estados Financieros enviados a AyA","Contar con un registro de estados financieros enviados al AYA para cumplir convenio de delegación ","Pedir los estados financieros al contador","Comprobante de envío de Estados Financieros"]
[null,null,null,"Remitir copia de estados financieros a la ORAC"]
[null,null,null,"Mantener un registro de estados financieros enviados al AYA"]
[null,"Bodega de materiales para operación y mantenimiento","Contar con una bodega para mantener seguro, ordenado y controlado los materiales con que cuenta la ASADA ","Establecer requerimientos de espacio para contar con una bodega","Bodega de materiales en uso"]
[null,null,null,"Buscar el espacio"]
[null,null,null,"Equipar el espacio de la bodega"]
[null,null,null,"Mantener ordenado el stock bodega"]
[null,null,null,"Establecer controles de entrada y salida"]
[null,null,null,"Establecer inventarios de materiales en bodega periódicamente"]
[null,"Sistemas de gestión para la ASADAS","Contar con un sistema informático para una gestión más ágil de la ASADAS","Conocer ofertas de mercado de sistemas computarizados para la gestión de ASADAS:","Sistema de Gestión actualizado y en uso"]
[null,null,null,"Cotizar el servicio con las empresas proveedoras"]
[null,null,null,"Buscar la mejor opción para la ASADA"]
[null,null,null,"Contratar el servicio o comprar el sistema"]
["Gestión Comercial","Disponibilidad de agua para nuevos servicios","Contar con un estudio de capacidad hídrica e hidráulica para conocer la disponibilidad de agua para nuevos servicios","Desarrollar estudio de Capacidad Hídrica","Estudio de capacidad hídrica"]
[null,null,null,"Desarrollar estudio de Capacidad Hidráulica"]
[null,null,null,"Para ambas se necesita el apoyo de un ingeniero, en algunos casos el AYA puede apoyar"]
[null,"Micromedición instalada","Contar con plan de micro medición para la reducción de agua no contabilizada","Realizar un diagnóstico de micro medición existente","Catastro de hidrómetros"]
[null,null,null,"Desarrollar un Plan de sensibilización de reducción agua no contabilizada a los usuarios"]
[null,null,null,"Desarrollar un Plan para instalar los medidores que falten"]
[null,null,null,"Realizar lecturas de manera periódicas"]
[null,null,null,"Contar con un Plan de mantenimiento y sustitución de medidores"]
[null,"Macromedición existente","Contar con equipos de macro medición para conocer cuánta agua producen las fuentes ","Definir requerimientos de macro medición","Registro de macro medidores"]
[null,null,null,"Adquisición e instalación de macro medidores"]
[null,null,null,"Establecer un registro de mediciones del macro medidor"]
[null,"Frecuencia de la lectura de hidrómetros","Contar con un plan mensual para la lectura de micro medidores ","Establecer un plan de lecturas de micro medidores mensual","Última lectura de hidrómetros"]
[null,null,null,"Ejecutar el plan de restauración"]
[null,null,null,"Establecer rutas de lectura"]
[null,null,null,"Este es un trabajo que realiza el fontanero"]
[null,"Sistema de Facturación","Contar con un sistema informático para la facturación ","Buscar ofertas de mercado sobre sistemas computarizados para la gestión de ASADAS","Sistema de Facturación"]
[null,null,null,"Solicitar una demostración del sistema de facturación"]
[null,null,null,"Cotizar el servicio con las empresas proveedoras"]
[null,null,null,"Buscar la mejor opción para la ASADA"]
[null,null,null,"Contratar el servicio o comprar el sistema"]
[null,"Sistema de Recaudación","Contar con un sistema informático para la recaudación ","Buscar ofertas de mercado sobre sistemas computarizados para la gestión de ASADAS","Sistema de Recaudación"]
[null,null,null,"Solicitar una demostración del sistema de recaudación"]
[null,null,null,"Cotizar el servicio con las empresas proveedoras"]
[null,null,null,"Buscar la mejor opción para la ASADA"]
[null,null,null,"Contratar el servicio o comprar el sistema"]
[null,"Morosidad mensual","Contar con un plan para reducir los pendientes de cobro","Lineamiento de Junta Directiva de reducción de pendientes","Informe de morosidad"]
[null,null,null,"Establecer un plan de reducción de pendientes de cobro"]
[null,null,null,"Establecer procedimiento de reconexión"]
[null,"Aplicación de tarifa vigente de ARESEP","Aplicar la tarifa vigente de ARESEP para un cobro justo y real del agua","Aplicar la tarifa aplicada por la ARESEP","Tarifa vigente vs Tarifa ARESEP"]
[null,"Local para atención de Usuarios","Contar con un espacio para la atención de usuarios","Establecer requerimientos de espacio para atención de usuarios","Local para atención de Usuarios"]
[null,null,null,"Equipar el espacio"]
[null,null,null,"Definir horarios de atención a usuarios"]
[null,"Seguimiento de quejas. "," Contar con un registro para la recepción quejas y resolución de reclamos","Establecer un registro de recepción y resolución reclamos","Registro de quejas y medidas correctivas"]
[null,null,null,"Dar seguimiento a las quejas"]
[null,null,null,"Comunicar a los usuarios la resolución de su queja"]
["Gestión Comunal","Porcentaje de usuarios que son socios","Contar con un plan de afiliación para aumentar la participación de miembros con vos y voto","Elaborar un plan de afiliación","Libro de Socios"]
[null,null,null,"Diseñar boletas de afiliación"]
[null,null,null,"Definir procedimiento de afiliaciones"]
[null,"Socios en las Asambleas ","Contar con un plan de afiliación para aumentar la participación en la asamblea","Elaborar un plan de Afiliación","Ejecución del plan de afiliación"]
[null,null,null,"Aumentar la participación en la asamblea de miembros con voz y voto"]
[null,null,null,"Desarrollar Mecanismos de divulgación"]
[null,null,null,"Aprobar el plan por junta directiva"]
[null,null,null,"Ejecutar el plan"]
[null,"Plan de Afiliación "," Contar con un plan de afiliación para aumentar el número de asociados a la ASADA","Elaborar un plan de Afiliación","Plan de Afiliación "]
[null,null,null,"Desarrollar mecanismos de divulgación"]
[null,null,null,"Recalcar la importancia de ser afiliado"]
[null,null,null,"Aprobar el plan por junta directiva"]
[null,null,null,"Ejecutar el plan"]
[null,"Campañas con escuelas/colegios","Contar con un plan de promoción para realizar campañas con escuelas y colegios","Elaborar un plan de promoción","Plan de campañas de promoción"]
[null,null,null,"Coordinar y Planificar con las escuelas y colegios al inicio del año"]
[null,null,null,"Celebración del día del agua, ambiente y del árbol con jóvenes y niños"]
[null,null,null,"Visitar de fuentes de agua"]
[null,null,null,"Realizar actividades de reforestación"]
[null,"Plan de Transparencia y Rendición de cuentas ","Contar con un mecanismos de rendición de cuentas y transparencia de la gestión","Definir los lineamientos de transparencia y rendición de cuentas a operar, el medio para publicarlos y la frecuencia","Plan de Transparencia y Rendición de cuentas "]
[null,null,null,"Aprobar los lineamientos por junta directiva"]
[null,null,null,"Ejecutar el plan"]
["Gestión Recurso Hídrico","Áreas de protección definidas","Contar con el Estudio Hidrogeológico para que la ASADA conozca donde se recargan sus fuentes de agua","Buscar el apoyo de un ingeniero especialista","Informe de estudio hídrico"]
[null,null,null,"Realizar un Estudio Hidrogeológico"]
[null,null,null,"Definir donde están las áreas de protección"]
[null,null,null,"Demarcar de áreas de protección"]
[null,null,null,"Realizar Actividades de Protección de estas áreas"]
[null,null,null,"Recuperar de áreas de protección"]
[null,"Programas de Adaptación Cambio Climático","Contar con un Plan para la Adaptación al cambio climático","Hacer un plan de Adaptación al cambio climático","Programas de Adaptación Cambio Climático"]
[null,null,null,"Aprobar por Junta Directiva"]
[null,null,null,"Conseguir Recursos"]
[null,null,null,"Ejecutar y dar Seguimiento"]
[null,null,null,"Utilizar metodología brindada por el AYA"]
[null,"Balance hídrico","Contar con un Estudio de balance hídrico como base para poder otorgar nuevas disponibilidades de agua","Realizar un estudio de balance hídrico","Informe de balance hídrico"]
[null,null,null,"Contratar al especialista"]
[null,null,null,"Recepción y análisis del estudio técnico"]
[null,null,null,"Implementar las mejoras y recomendaciones dadas por el estudio técnico"]
[null,"Programas de educación ambiental en la comunidad","Contar con un plan de promoción para realizar campañas en la comunidad","Elaborar un plan de promoción","Informe de actividades realizadas"]
[null,null,null,"Coordinar y Planificar con líderes comunales"]
[null,null,null,"Celebración del día del agua, ambiente y del árbol"]
[null,null,null,"Realizar Visita de fuentes de agua"]
[null,null,null,"Realizar Actividades de reforestación"]
[null,"Inscripción de caudal en MINAE","Contar con un estudio de nuevas fuentes para enviar solicitud al AYA para inscripción de caudal","Estudiar la nueva fuente en cuanto a producción y calidad","Inscripción de caudal en MINAE"]
[null,null,null,"Enviar solicitud al AYA para Inscripción de caudal"]
[null,null,null,"AYA realiza la inscripción al MINAE"]
[null,null,null,"AYA envía respuesta del MINAE a la ASADA"]
["Gestión Agua Potable y Saneamiento","Manual de mantenimiento y operación del sistema","Contar con un manual de mantenimiento y operación del sistema para garantizar la sostenibilidad del servicio de agua","Identificar y evaluar los componentes del sistema de acueducto","Manual de mantenimiento y operación del sistema"]
[null,null,null,"Definir frecuencia de mantenimiento"]
[null,null,null,"Definir rutinas de operación"]
[null,null,null,"Aprobar manual en Junta Directiva"]
[null,null,null,"Capacitar al fontanero en el uso del Manual"]
[null,"Frecuencia de  interrupciones del servicio","Contar con un registro actualizado de continuidad del servicio para conocer el día, tiempo y acciones correctivas por interrupción","Establecer un registro de Continuidad del servicio","Reporte de interrupciones en el último año"]
[null,null,null,"Indicar el día de interrupción"]
[null,null,null,"Indicar tiempos de interrupción"]
[null,null,null,"Acciones correctivas"]
[null,null,null,"Implementar el Registro"]
[null,"Mediciones de presión ","Contar con un programa de medición de presión para garantizar agua en cantidad a sus usuarios ","Establecer un programa de mediciones","Resultados de mediciones de presión periódicas"]
[null,null,null,"Contar con un medidor de presión"]
[null,null,null,"Definir lugares del sistema para medir presión"]
[null,null,null,"Definir frecuencia de mediciones"]
[null,"Plan de Gestión de Riesgos","Contar con un plan de gestión de riesgos, para reducir la vulnerabilidad y consecuencia de los riesgos en la ASADA","Hacer el plan de Gestión de Riesgo","Plan de Gestión de Riesgos"]
[null,null,null,"Aprobar el plan por junta directiva"]
[null,"Calidad del agua – Periodicidad de los muestreos","Contar con programa de periodicidad de los muestreos para garantizar la calidad de agua a sus usuarios","Establecer periodicidad de muestreos de acuerdo al reglamento de capacidad de agua","Reporte de resultados de RCA"]
[null,null,null,"Definir Periodicidad"]
[null,null,null,"Muestra según la periodicidad"]
[null,null,null,"Ajustarse al Reglamento manual"]
[null,"Calidad del agua – Cumplimiento del RCA","Cumplir con el Reglamento de Calidad de Agua para garantizar la calidad del agua a sus usuarios","Analizar los resultados del laboratorio del agua","Reporte de resultados de RCA"]
[null,null,null,"Implementar medidas correctivas: si no cumple"]
[null,"Calidad del agua – implementación de medidas correctivas","Implementar medidas correctivas dadas por el Laboratorio de Agua del AYA para garantizar la calidad del agua a sus usuarios","Analizar el parámetro no cumplido","Bitácora de acciones correctivas"]
[null,null,null,"Realizar correcciones especificas por parámetro"]
[null,null,null,"La acción correctiva es diferente dependiendo del indicador"]
[null,null,null,"Ejecutar acción correctiva"]
[null,"Calidad del agua – Sistema de Desinfección","Contar con un sistema de desinfección para garantizar la calidad del agua","Definir requerimiento de Desinfección","Reporte de mantenimiento de sistemas de desinfección"]
[null,null,null,"Buscar ofertas de Mercado"]
[null,null,null,"Adquirir e Instalar el equipo"]
[null,null,null,"Capacitar Fontanero en su uso y dosificación"]
[null,null,null,"Establecer Programa de mantenimiento del equipo"]
[null,"Plan de instalación de hidrantes","Contar con un plan de instalación de hidrantes para atención de emergencias","Hacer un plan de instalación de hidrantes","Catastro de hidrantes"]
[null,null,null,"Aprobar por Junta Directiva"]
[null,null,null,"Conseguir Recursos"]
[null,null,null,"Ejecutar y dar Seguimiento"]
[null,"Contabilidad para hidrantes separada","Contar contabilidad separada de hidrantes para conocer costos","Llevar registros contables separados para hidrantes","Libros contables de hidrantes"]
["Gestión Saneamiento","Condición del Alcantarillado Sanitario",null,null,"Responda si cuenta o no con alcantarillado sanitario"]
[null,"Presentación de reportes operacionales",null,null,"Responda si cuenta o no con alcantarillado sanitario"]
[null,"Estado de la PTAR",null,null,"Responda si cuenta o no con alcantarillado sanitario"]

{"sheet":"Seguimiento","index":7,"n_rows":2,"n_cols":79,"rows_kept":2,"cut":false,"hidden":true,"merged":[]}
["Fecha","Nombre ASADA","Región","Cantón","Distrito","Teléfono","Número de conexiones o servicios","Número de comunidades ","Sistema de Facturación","Frecuencia de la lectura de hidrómetros","Micromedición instalada","Disponibilidad de agua para nuevos servicios","Macromedición existente","Sistema de Recaudación","Morosidad mensual","Aplicación de tarifa vigente de ARESEP","Local para atención de Usuarios","Seguimiento de quejas","Campañas con escuelas/colegios","Plan de Transparencia y Rendición de cuentas ","Plan de Afiliación ","Socios en las Asambleas ","Porcentaje de abonados que son socios","Balance Hídrico","Programas de Adaptación Cambio Climático","Áreas de protección definidas","Programas de educación ambiental en la comunidad","Inscripción de caudal en MINAE","Mediciones de presión ","Plan de instalación de hidrantes","Contabilidad para hidrantes separada","Calidad del agua – Sistema de Desinfección","Plan de Gestión de Riesgos","Calidad del agua – Periodicidad de los muestreos","Calidad del agua – Cumplimiento del RCA","Calidad del agua – implementación de medidas correctivas","Frecuencia de  interrupciones del servicio","Manual de mantenimiento y operación del sistema","Custodia de ingresos","Plan de Trabajo Anual","Libro de Socios","Libro de Actas Asamblea","Libro de Actas Junta Directiva","Convenio de Delegación","Fontanero","Servicios de Contabilidad","Estados financieros al último trimestre","Respaldos de información Financiera","Estados Financieros enviados a AyA","Bodega de materiales para operación y mantenimiento","Sistemas de gestión para la ASADAS","Condición del Alcantarillado Sanitario","Presentación de reportes operacionales","Estado de la PTAR","Gestión Comercial","Gestión Comunal","Gestión Ambiental y de Recurso Hídrico","Gestión de Sistemas de Agua","Gestión Administrativa y Financiera","Gestión Saneamiento","Categoría","Puntuación","Porcentaje","Variable a mejorar 1","% Cumplimiento V1","Variable a mejorar 2","% Cumplimiento V2","Variable a mejorar 3","% Cumplimiento V3","Variable a mejorar 4","% Cumplimiento V4","Variable a mejorar 5","% Cumplimiento V5","Variable a mejorar 6","% Cumplimiento V6","Variable a mejorar 7","% Cumplimiento V7","Variable a mejorar 8","% Cumplimiento V8"]
[{"$f":"+Presentación!B4","v":"00:00:00"},{"$f":"+nombre.asada","v":0},{"$f":"+Presentación!B8","v":0},{"$f":"+Presentación!B9","v":0},{"$f":"+Presentación!D8","v":0},{"$f":"+Presentación!D9","v":0},{"$f":"+Presentación!C10","v":0},{"$f":"+Presentación!C11","v":0},{"$f":"+Diagnóstico!S5","v":0.01},{"$f":"+Diagnóstico!S6","v":5.0000000000000001E-3},{"$f":"+Diagnóstico!S7","v":6.7000000000000002E-3},{"$f":"+Diagnóstico!S8","v":0},{"$f":"+Diagnóstico!S9","v":0.01},{"$f":"+Diagnóstico!S10","v":0.01},{"$f":"+Diagnóstico!S11","v":0.01},{"$f":"+Diagnóstico!S12","v":0.05},{"$f":"+Diagnóstico!S13","v":0.02},{"$f":"+Diagnóstico!S14","v":0.01},{"$f":"+Diagnóstico!S17","v":0.03},{"$f":"+Diagnóstico!S18","v":0.03},{"$f":"+Diagnóstico!S19","v":0.03},{"$f":"+Diagnóstico!S20","v":0.03},{"$f":"+Diagnóstico!S21","v":0.03},{"$f":"+Diagnóstico!S24","v":0.04},{"$f":"+Diagnóstico!S25","v":0.02},{"$f":"+Diagnóstico!S26","v":0.04},{"$f":"+Diagnóstico!S27","v":0.02},{"$f":"+Diagnóstico!S28","v":0.03},{"$f":"+Diagnóstico!S31","v":0.02},{"$f":"+Diagnóstico!S32","v":0.01},{"$f":"+Diagnóstico!S33","v":0.01},{"$f":"+Diagnóstico!S34","v":0.03},{"$f":"+Diagnóstico!S35","v":0.02},{"$f":"+Diagnóstico!S36","v":0.03},{"$f":"+Diagnóstico!S37","v":0.12},{"$f":"+Diagnóstico!S38","v":0.02},{"$f":"+Diagnóstico!S39","v":0.02},{"$f":"+Diagnóstico!S40","v":0.02},{"$f":"+Diagnóstico!S43","v":0.01},{"$f":"+Diagnóstico!S44","v":0.02},{"$f":"+Diagnóstico!S45","v":0.01},{"$f":"+Diagnóstico!S46","v":0.01},{"$f":"+Diagnóstico!S47","v":0.01},{"$f":"+Diagnóstico!S48","v":0.1},{"$f":"+Diagnóstico!S49","v":0.03},{"$f":"+Diagnóstico!S50","v":0.01},{"$f":"+Diagnóstico!S51","v":0.01},{"$f":"+Diagnóstico!S52","v":0.01},{"$f":"+Diagnóstico!S53","v":0.01},{"$f":"+Diagnóstico!S54","v":0.01},{"$f":"+Diagnóstico!S55","v":0.01},{"$f":"+Diagnóstico!S59","v":0.03},{"$f":"+Diagnóstico!S60","v":0.04},{"$f":"+Diagnóstico!S61","v":0.03},{"$f":"+Diagnóstico!F81","v":1.83E-2},{"$f":"+Diagnóstico!F82","v":0},{"$f":"+Diagnóstico!F83","v":0},{"$f":"+Diagnóstico!F84","v":0},{"$f":"+Diagnóstico!F85","v":0},{"$f":"+Diagnóstico!F86","v":0},{"$f":"+Diagnóstico!B69","v":"Débil"},{"$f":"+Diagnóstico!C68","v":3},{"$f":"+Diagnóstico!D68","v":1.83E-2},{"$f":"+Plan!B7","v":""},{"$f":"+Plan!W7","v":""},{"$f":"+Plan!B14","v":0},{"$f":"+Plan!W14","v":""},{"$f":"+Plan!B21","v":0},{"$f":"+Plan!W21","v":""},{"$f":"+Plan!B28","v":0},{"$f":"+Plan!W28","v":""},{"$f":"+Plan!B35","v":0},{"$f":"+Plan!W35","v":""},{"$f":"+Plan!B42","v":0},{"$f":"+Plan!W42","v":""},{"$f":"+Plan!B49","v":0},{"$f":"+Plan!W49","v":""},{"$f":"+Plan!B56","v":0},{"$f":"+Plan!W56","v":""}]

{"sheet":"Pivots","index":8,"n_rows":70,"n_cols":5,"rows_kept":70,"cut":false,"hidden":true,"merged":[]}
[null,null,null,"Variables a trabajar en PME","(Varios elementos)"]
["Gestión Comercial"]
["Etiquetas de fila","Suma de Diferencia %",null,"Etiquetas de fila","Suma de % Faltante"]
["Aplicación de tarifa vigente de ARESEP",0.05,null,"Total general"]
["Local para atención de Usuarios",0.02]
["Sistema de Facturación",0.01]
["Morosidad mensual",0.01]
["Macromedición existente",0.01]
["Sistema de Recaudación",0.01]
["Seguimiento de quejas",0.01]
["Micromedición instalada",6.7000000000000002E-3]
["Frecuencia de la lectura de hidrómetros",5.0000000000000001E-3]
["Disponibilidad de agua para nuevos servicios",0]
["Total general",0.13169999999999998]
[]
["Gestión Comunal"]
["Etiquetas de fila","Suma de %"]
["Socios en las Asambleas ",0.03]
["Campañas con escuelas/colegios",0.03]
["Porcentaje de usuarios que son socios",0.03]
["Plan de Afiliación ",0.03]
["Plan de Transparencia y Rendición de cuentas ",0.03]
["Total general",0.15]
[]
["Gestión Ambiental y de Recurso Hídrico"]
["Etiquetas de fila","Suma de %"]
["Áreas de protección definidas",0.04]
["Balance Hídrico",0.04]
["Inscripción de caudal en MINAE",0.03]
["Programas de educación ambiental en la comunidad",0.02]
["Programas de Adaptación Cambio Climático",0.02]
["Total general",0.15000000000000002]
[]
["Gestión Agua Potable"]
["Etiquetas de fila","Suma de %"]
["Calidad del agua – Cumplimiento del RCA",0.12]
["Calidad del agua – Periodicidad de los muestreos",0.03]
["Calidad del agua – Sistema de Desinfección",0.03]
["Manual de mantenimiento y operación del sistema",0.02]
["Frecuencia de  interrupciones del servicio",0.02]
["Mediciones de presión ",0.02]
["Plan de Gestión de Riesgos",0.02]
["Calidad del agua – implementación de medidas correctivas",0.02]
["Plan de instalación de hidrantes",0.01]
["Contabilidad para hidrantes separada",0.01]
["Total general",0.3]
[]
["Gestión Administrativa y Financiera"]
["Etiquetas de fila","Suma de %"]
["Convenio de Delegación",0.1]
["Fontanero",0.03]
["Plan de Trabajo Anual",0.02]
["Libro de Actas Junta Directiva",0.01]
["Sistemas de gestión para la ASADAS",0.01]
["Estados financieros al último trimestre",0.01]
["Libro de Socios",0.01]
["Estados Financieros enviados a AyA",0.01]
["Respaldos de información Financiera",0.01]
["Servicios de Contabilidad",0.01]
["Custodia de ingresos",0.01]
["Bodega de materiales para operación y mantenimiento",0.01]
["Libro de Actas Asamblea",0.01]
["Total general",0.25000000000000006]
[]
["Gestión Saneamiento"]
["Etiquetas de fila","Suma de %"]
["Presentación de reportes operacionales",0.04]
["Condición del Alcantarillado Sanitario",0.03]
["Estado de la PTAR",0.03]
["Total general",0.1]